Workbook

Sheet Stavba
C2: Položkový rozpočet stavby | H2: Datum:
C5: Stavba : | D5: 3297 | E5: Turnov - Opravy MK a chodníků - II.pololetí 2021
C7: Objednatel : | D7: Město TURNOV | H7: IČO : | I7: 00276227
D8: Antonína Dvořáka 335 | H8: DIČ : | I8: CZ00276227
C9: 51122 | D9: Turnov
C11: Zhotovitel : | D11: . | H11: IČO :
H12: DIČ :
C14: Za zhotovitele : | H14: Za objednatele :
C16: _______________ | H16: _______________
J18: Rozpočtové náklady
B19: Základ pro DPH | D19: 15 | E19: % | I19: =ROUND(G34,0) -> 0
B20: DPH | D20: =SazbaDPH1 -> 15 | E20: % | I20: =ROUND(I19*D20/100,0) -> 0
B21: Základ pro DPH | D21: 21 | E21: % | I21: =ROUND(H34,0) -> 0
B22: DPH | D22: =SazbaDPH2 -> 21 | E22: % | I22: =ROUND(I21*D21/100,0) -> 0
B23: Cena celkem za stavbu | I23: =SUM(I19:I22) -> 0
B26: Rekapitulace stavebních objektů a provozních souborů
B28: Číslo a název objektu / provozního souboru | F28: Cena celkem | G28: =CONCATENATE("Základ DPH ",SazbaDPH1," %") -> Základ DPH 15 % | H28: =CONCATENATE("Základ DPH ",SazbaDPH2," %") -> Základ DPH 21 % | I28: DPH celkem | J28: %
B29: 101 | C29: Oprava komunikace Kadeřavec I. | F29: =G29+H29+I29 -> 0 | G29: 0 | H29: =SUM(H39) -> 0 | I29: =(G29*SazbaDPH1)/100+(H29*SazbaDPH2)/100 -> 0 | J29: =IF(CelkemObjekty=0,"",F29/CelkemObjekty*100) -> 
B30: 103 | C30: Oprava komunikace "Ve Struhách" | F30: =G30+H30+I30 -> 0 | G30: 0 | H30: =SUM(H40) -> 0 | I30: 0
B31: 104 | C31: Oprava komunikace "Pod Stránkou" | F31: 0 | G31: 0 | H31: =SUM(H41) -> 0 | I31: 0
B32: 105 | C32: Oprava komunikace "Bukovina u kostela" | F32: 0 | G32: 0 | H32: =SUM(H42) -> 0 | I32: 0
B33: 106 | C33: Oprava chodníků v ul. Žizkova u čp. 2030 a 2031 | F33: 0 | G33: 0 | H33: =SUM(H43) -> 0 | I33: 0
B34: Celkem za stavbu | F34: =SUM(F29:F33) -> 0 | G34: =SUM(G29:G33) -> 0 | H34: =SUM(H29:H33) -> 0 | I34: =SUM(I29:I33) -> 0 | J34: =IF(CelkemObjekty=0,"",F34/CelkemObjekty*100) -> 
B36: Rekapitulace stavebních rozpočtů
B38: Číslo objektu | C38: Číslo a název rozpočtu | F38: Cena celkem | G38: =CONCATENATE("Základ DPH ",SazbaDPH1," %") -> Základ DPH 15 % | H38: =CONCATENATE("Základ DPH ",SazbaDPH2," %") -> Základ DPH 21 % | I38: DPH celkem | J38: %
B39: 101 | C39: 3297/101 Oprava komunikace Kadeřavec I. | F39: =G39+H39+I39 -> 0 | G39: 0 | H39: =SUM('101 3297101 KL'!C23) -> 0 | I39: =(G39*SazbaDPH1)/100+(H39*SazbaDPH2)/100 -> 0 | J39: =IF(CelkemObjekty=0,"",F39/CelkemObjekty*100) -> 
B40: 103 | C40: 3297/103 Oprava komunikace "Ve Struhách" k čp. 908 | F40: =G40+H40+I40 -> 0 | G40: 0 | H40: =SUM('103 3297103 KL'!C23) -> 0 | I40: 0
B41: 104 | C41: 3297/104 Oprava komunikace "Pod Stránkou" | F41: 0 | G41: 0 | H41: =SUM('104 3297104 KL'!C23) -> 0 | I41: 0
B42: 105 | C42: 3297/105 Oprava komunikace "Bukovina u kostela" | F42: 0 | G42: 0 | H42: =SUM('105 3297105 KL'!C23) -> 0 | I42: 0
B43: 106 | C43: 3297/106 Oprava chodníků v ul. Žizkova u čp. 2030 a 2031 | F43: 0 | G43: 0 | H43: =SUM('106 3297106 KL'!C23) -> 0 | I43: 0
B44: Celkem za stavbu | F44: =SUM(F39:F43) -> 0 | G44: =SUM(G39:G43) -> 0 | H44: =SUM(H39:H43) -> 0 | I44: =SUM(I39:I43) -> 0 | J44: =IF(CelkemObjekty=0,"",F44/CelkemObjekty*100) -> 

Sheet 101 3297101 KL
A1: POLOŽKOVÝ ROZPOČET
A2: Rozpočet | C2: 3297/101 | D2: Oprava komunikace Kadeřavec I. | F2: JKSO | G2: 822.29
A4: Objekt | F4: SKP
A5: 101 | C5: Oprava komunikace Kadeřavec I. | F5: Měrná jednotka | G5: m2
A6: Stavba | F6: Počet jednotek | G6: 650
A7: 3297 | C7: Turnov - Opravy MK a chodníků | F7: Náklady na m.j. | G7: =IF(G6=0,,ROUND((F30+F32)/G6,1)) -> 0
A8: Projektant | F8: Typ rozpočtu
A9: Zpracovatel projektu
A10: Objednatel | C10: Město TURNOV
A11: Dodavatel | C11: . | F11: Zakázkové číslo
A12: Rozpočtoval | F12: Počet listů
A13: ROZPOČTOVÉ NÁKLADY
A14: Základní rozpočtové náklady | D14: Ostatní a vedlejší rozpočtové náklady
B15: HSV celkem | C15: ='101 3297101 Rek'!E12 -> 0 | D15: ='101 3297101 Rek'!A17 -> Zařízení staveniště | G15: ='101 3297101 Rek'!I17 -> 0
A16: Z | B16: PSV celkem | C16: ='101 3297101 Rek'!F12 -> 0 | D16: ='101 3297101 Rek'!A18 -> Kompletační činnost (IČD) | G16: ='101 3297101 Rek'!I18 -> 0
A17: R | B17: M práce celkem | C17: ='101 3297101 Rek'!H12 -> 0
A18: N | B18: M dodávky celkem | C18: ='101 3297101 Rek'!G12 -> 0
A19: ZRN celkem | C19: =SUM(C15:C18) -> 0
A21: HZS | C21: ='101 3297101 Rek'!I12 -> 0
A22: ZRN+HZS | C22: =C19+C21 -> 0
A23: ZRN+ost.náklady+HZS | C23: =C22+G23 -> 0 | D23: Ostatní náklady celkem | G23: ='101 3297101 Rek'!H19 -> 0
A24: Vypracoval | D24: Za zhotovitele | F24: Za objednatele
A25: Jméno : | D25: Jméno : | F25: Jméno :
A26: Datum : | D26: Datum : | F26: Datum :
A28: Podpis : | D28: Podpis: | F28: Podpis:
A30: Základ pro DPH | C30: 21 | D30: % | F30: =C23-F32 -> 0
A31: DPH | C31: =C30 -> 21 | D31: % | F31: =ROUND(PRODUCT(F30,C31/100),0) -> 0
A32: Základ pro DPH | C32: 0 | D32: % | F32: 0
A33: DPH | C33: =C32 -> 0 | D33: % | F33: =ROUND(PRODUCT(F32,C33/100),0) -> 0
A34: CENA ZA OBJEKT CELKEM | F34: =ROUND(SUM(F30:F33),0) -> 0
A36: Poznámka :

Sheet 101 3297101 Rek
A1: Stavba : | C1: 3297 Turnov - Opravy MK a chodníků | G1: Rozpočet : | H1: 3297/101
A2: Objekt : | C2: 101 Oprava komunikace Kadeřavec I. | G2: Oprava komunikace Kadeřavec I.
A4: REKAPITULACE STAVEBNÍCH DÍLŮ
B6: Stavební díl | E6: HSV | F6: PSV | G6: Dodávka | H6: Montáž | I6: HZS
A7: ='101 3297101 Pol'!B7 -> 1 | B7: ='101 3297101 Pol'!C7 -> Zemní práce | E7: ='101 3297101 Pol'!BA14 -> 0 | F7: ='101 3297101 Pol'!BB14 -> 0 | G7: ='101 3297101 Pol'!BC14 -> 0 | H7: ='101 3297101 Pol'!BD14 -> 0 | I7: ='101 3297101 Pol'!BE14 -> 0
A8: ='101 3297101 Pol'!B15 -> 5 | B8: ='101 3297101 Pol'!C15 -> Komunikace | E8: ='101 3297101 Pol'!BA24 -> 0 | F8: ='101 3297101 Pol'!BB24 -> 0 | G8: ='101 3297101 Pol'!BC24 -> 0 | H8: ='101 3297101 Pol'!BD24 -> 0 | I8: ='101 3297101 Pol'!BE24 -> 0
A9: ='101 3297101 Pol'!B25 -> 91 | B9: ='101 3297101 Pol'!C25 -> Doplňující práce na komunikaci | E9: ='101 3297101 Pol'!BA30 -> 0 | F9: ='101 3297101 Pol'!BB30 -> 0 | G9: ='101 3297101 Pol'!BC30 -> 0 | H9: ='101 3297101 Pol'!BD30 -> 0 | I9: ='101 3297101 Pol'!BE30 -> 0
A10: ='101 3297101 Pol'!B31 -> 93 | B10: ='101 3297101 Pol'!C31 -> Dokončovací práce inženýrských staveb | E10: ='101 3297101 Pol'!BA36 -> 0 | F10: ='101 3297101 Pol'!BB36 -> 0 | G10: ='101 3297101 Pol'!BC36 -> 0 | H10: ='101 3297101 Pol'!BD36 -> 0 | I10: ='101 3297101 Pol'!BE36 -> 0
A11: ='101 3297101 Pol'!B37 -> 99 | B11: ='101 3297101 Pol'!C37 -> Staveništní přesun hmot | E11: ='101 3297101 Pol'!BA39 -> 0 | F11: ='101 3297101 Pol'!BB39 -> 0 | G11: ='101 3297101 Pol'!BC39 -> 0 | H11: ='101 3297101 Pol'!BD39 -> 0 | I11: ='101 3297101 Pol'!BE39 -> 0
B12: CELKEM OBJEKT | E12: =SUM(E7:E11) -> 0 | F12: =SUM(F7:F11) -> 0 | G12: =SUM(G7:G11) -> 0 | H12: =SUM(H7:H11) -> 0 | I12: =SUM(I7:I11) -> 0
A14: OSTATNÍ A VEDLEJŠÍ ROZPOČTOVÉ NÁKLADY
A16: Název OaVRN | E16: Kč | I16: Kč
A17: Zařízení staveniště | E17: 0 | I17: =E17+F17*G17/100 -> 0 | BA17: 2
A18: Kompletační činnost (IČD) | E18: 0 | I18: =E18+F18*G18/100 -> 0 | BA18: 2
B19: CELKEM OaVRN | H19: =SUM(I17:I18) -> 0

Sheet 101 3297101 Pol
A1: Položkový rozpočet
A3: Stavba : | C3: 3297 Turnov - Opravy MK a chodníků | E3: Rozpočet: | F3: ='101 3297101 Rek'!H1 -> 3297/101
A4: Objekt : | C4: 101 Oprava komunikace Kadeřavec I. | E4: ='101 3297101 Rek'!G2 -> Oprava komunikace Kadeřavec I.
A6: P.č. | B6: Číslo položky | C6: Název položky | D6: MJ | E6: množství | F6: cena / MJ | G6: celkem (Kč) | H6: Jednotková hmotnost | I6: Celková hmotnost | J6: Jednotková dem.hmot. | K6: Celková dem.hmot.
A7: Díl: | B7: 1 | C7: Zemní práce | O7: 1
A8: 1 | B8: 111301111R00 | C8: Sejmutí drnu tl. do 10 cm, s přemístěním do 50 m | D8: m2 | E8: 85 | G8: =E8*F8 -> 0 | H8: 0 | I8: =E8*H8 -> 0 | J8: 0 | K8: =E8*J8 -> 0 | O8: 2 | AA8: 1 | AB8: 1 | AC8: 1 | AZ8: 1 | BA8: =IF(AZ8=1,G8,0) -> 0 | BB8: =IF(AZ8=2,G8,0) -> 0 | BC8: =IF(AZ8=3,G8,0) -> 0 | BD8: =IF(AZ8=4,G8,0) -> 0 | BE8: =IF(AZ8=5,G8,0) -> 0 | CA8: 1 | CB8: 1
C9: Krajnice komunikace:170,00*0,25*2 | E9: 85 | M9: Krajnice komunikace:170,00*0,25*2
A10: 2 | B10: 162702111RSZ | C10: Vodorovné přemístění drnu na skládku zhotovitele | D10: m2 | E10: 85 | G10: =E10*F10 -> 0 | H10: 0 | I10: =E10*H10 -> 0 | J10: 0 | K10: =E10*J10 -> 0 | O10: 2 | AA10: 1 | AB10: 1 | AC10: 1 | AZ10: 1 | BA10: =IF(AZ10=1,G10,0) -> 0 | BB10: =IF(AZ10=2,G10,0) -> 0 | BC10: =IF(AZ10=3,G10,0) -> 0 | BD10: =IF(AZ10=4,G10,0) -> 0 | BE10: =IF(AZ10=5,G10,0) -> 0 | CA10: 1 | CB10: 1
C11: Krajnice komunikace:170,00*0,25*2 | E11: 85 | M11: Krajnice komunikace:170,00*0,25*2
A12: 3 | B12: 162702199R00 | C12: Poplatek za skládku drnu | D12: m3 | E12: 8.5 | G12: =E12*F12 -> 0 | H12: 0 | I12: =E12*H12 -> 0 | J12: 0 | K12: =E12*J12 -> 0 | O12: 2 | AA12: 1 | AB12: 1 | AC12: 1 | AZ12: 1 | BA12: =IF(AZ12=1,G12,0) -> 0 | BB12: =IF(AZ12=2,G12,0) -> 0 | BC12: =IF(AZ12=3,G12,0) -> 0 | BD12: =IF(AZ12=4,G12,0) -> 0 | BE12: =IF(AZ12=5,G12,0) -> 0 | CA12: 1 | CB12: 1
C13: Krajnice komunikace:170,00*0,25*2*0,10 | E13: 8.5 | M13: Krajnice komunikace:170,00*0,25*2*0,10
B14: Celkem za | C14: 1 Zemní práce | G14: =SUM(G7:G13) -> 0 | I14: =SUM(I7:I13) -> 0 | K14: =SUM(K7:K13) -> 0 | O14: 4 | BA14: =SUM(BA7:BA13) -> 0 | BB14: =SUM(BB7:BB13) -> 0 | BC14: =SUM(BC7:BC13) -> 0 | BD14: =SUM(BD7:BD13) -> 0 | BE14: =SUM(BE7:BE13) -> 0
A15: Díl: | B15: 5 | C15: Komunikace | O15: 1
A16: 4 | B16: 569731111R00 | C16: Zpevnění krajnic kamenivem drceným tl. 10 cm | D16: m2 | E16: 85 | G16: =E16*F16 -> 0 | H16: 0.19695 | I16: =E16*H16 -> 16.74075 | J16: 0 | K16: =E16*J16 -> 0 | O16: 2 | AA16: 1 | AB16: 1 | AC16: 1 | AZ16: 1 | BA16: =IF(AZ16=1,G16,0) -> 0 | BB16: =IF(AZ16=2,G16,0) -> 0 | BC16: =IF(AZ16=3,G16,0) -> 0 | BD16: =IF(AZ16=4,G16,0) -> 0 | BE16: =IF(AZ16=5,G16,0) -> 0 | CA16: 1 | CB16: 1
C17: Krajnice komunikace:170,00*0,25*2 | E17: 85 | M17: Krajnice komunikace:170,00*0,25*2
A18: 5 | B18: 572713112R00 | C18: Vyrovnání povrchu krytů kamen. obaleným asfaltem | D18: t | E18: 48.75 | G18: =E18*F18 -> 0 | H18: 1 | I18: =E18*H18 -> 48.75 | J18: 0 | K18: =E18*J18 -> 0 | O18: 2 | AA18: 1 | AB18: 1 | AC18: 1 | AZ18: 1 | BA18: =IF(AZ18=1,G18,0) -> 0 | BB18: =IF(AZ18=2,G18,0) -> 0 | BC18: =IF(AZ18=3,G18,0) -> 0 | BD18: =IF(AZ18=4,G18,0) -> 0 | BE18: =IF(AZ18=5,G18,0) -> 0 | CA18: 1 | CB18: 1
C19: Komunikace Kadeřavec I.:650,00*(0,02+0,04)/2*2,5 | E19: 48.75 | M19: Komunikace Kadeřavec I.:650,00*(0,02+0,04)/2*2,5
A20: 6 | B20: 573231111R00 | C20: Postřik živičný spojovací z emulze 0,5-0,7 kg/m2 | D20: m2 | E20: 1300 | G20: =E20*F20 -> 0 | H20: 0.00071 | I20: =E20*H20 -> 0.923 | J20: 0 | K20: =E20*J20 -> 0 | O20: 2 | AA20: 1 | AB20: 1 | AC20: 1 | AZ20: 1 | BA20: =IF(AZ20=1,G20,0) -> 0 | BB20: =IF(AZ20=2,G20,0) -> 0 | BC20: =IF(AZ20=3,G20,0) -> 0 | BD20: =IF(AZ20=4,G20,0) -> 0 | BE20: =IF(AZ20=5,G20,0) -> 0 | CA20: 1 | CB20: 1
C21: Komunikace Kadeřavec I.:650,00*2 | E21: 1300 | M21: Komunikace Kadeřavec I.:650,00*2
A22: 7 | B22: 577141312RT2 | C22: Beton asfalt. ACO 8 CH,ACO 11,ACO 16, do 3 m, 5 cm plochy 201-1000 m2 | D22: m2 | E22: 650 | G22: =E22*F22 -> 0 | H22: 0.12715 | I22: =E22*H22 -> 82.6475 | J22: 0 | K22: =E22*J22 -> 0 | O22: 2 | AA22: 1 | AB22: 1 | AC22: 1 | AZ22: 1 | BA22: =IF(AZ22=1,G22,0) -> 0 | BB22: =IF(AZ22=2,G22,0) -> 0 | BC22: =IF(AZ22=3,G22,0) -> 0 | BD22: =IF(AZ22=4,G22,0) -> 0 | BE22: =IF(AZ22=5,G22,0) -> 0 | CA22: 1 | CB22: 1
C23: Komunikace Kadeřavec I.:650,00 | E23: 650 | M23: Komunikace Kadeřavec I.:650,00
B24: Celkem za | C24: 5 Komunikace | G24: =SUM(G15:G23) -> 0 | I24: =SUM(I15:I23) -> 149.06125 | K24: =SUM(K15:K23) -> 0 | O24: 4 | BA24: =SUM(BA15:BA23) -> 0 | BB24: =SUM(BB15:BB23) -> 0 | BC24: =SUM(BC15:BC23) -> 0 | BD24: =SUM(BD15:BD23) -> 0 | BE24: =SUM(BE15:BE23) -> 0
A25: Díl: | B25: 91 | C25: Doplňující práce na komunikaci | O25: 1
A26: 8 | B26: 919731122R00 | C26: Zarovnání styčné plochy živičné tl. do 10 cm | D26: m | E26: 3.5 | G26: =E26*F26 -> 0 | H26: 0 | I26: =E26*H26 -> 0 | J26: 0 | K26: =E26*J26 -> 0 | O26: 2 | AA26: 1 | AB26: 1 | AC26: 1 | AZ26: 1 | BA26: =IF(AZ26=1,G26,0) -> 0 | BB26: =IF(AZ26=2,G26,0) -> 0 | BC26: =IF(AZ26=3,G26,0) -> 0 | BD26: =IF(AZ26=4,G26,0) -> 0 | BE26: =IF(AZ26=5,G26,0) -> 0 | CA26: 1 | CB26: 1
C27: Komunikace Kadeřavec I.:3,50 | E27: 3.5 | M27: Komunikace Kadeřavec I.:3,50
A28: 9 | B28: 919735112R00 | C28: Řezání stávajícího živičného krytu tl. 5 - 10 cm | D28: m | E28: 3.5 | G28: =E28*F28 -> 0 | H28: 0 | I28: =E28*H28 -> 0 | J28: 0 | K28: =E28*J28 -> 0 | O28: 2 | AA28: 1 | AB28: 1 | AC28: 1 | AZ28: 1 | BA28: =IF(AZ28=1,G28,0) -> 0 | BB28: =IF(AZ28=2,G28,0) -> 0 | BC28: =IF(AZ28=3,G28,0) -> 0 | BD28: =IF(AZ28=4,G28,0) -> 0 | BE28: =IF(AZ28=5,G28,0) -> 0 | CA28: 1 | CB28: 1
C29: Komunikace Kadeřavec I.:3,50 | E29: 3.5 | M29: Komunikace Kadeřavec I.:3,50
B30: Celkem za | C30: 91 Doplňující práce na komunikaci | G30: =SUM(G25:G29) -> 0 | I30: =SUM(I25:I29) -> 0 | K30: =SUM(K25:K29) -> 0 | O30: 4 | BA30: =SUM(BA25:BA29) -> 0 | BB30: =SUM(BB25:BB29) -> 0 | BC30: =SUM(BC25:BC29) -> 0 | BD30: =SUM(BD25:BD29) -> 0 | BE30: =SUM(BE25:BE29) -> 0
A31: Díl: | B31: 93 | C31: Dokončovací práce inženýrských staveb | O31: 1
A32: 10 | B32: 938908411R00 | C32: Očištění povrchu krytu saponátovým roztokem | D32: m2 | E32: 650 | G32: =E32*F32 -> 0 | H32: 1e-05 | I32: =E32*H32 -> 0.0065 | J32: 0 | K32: =E32*J32 -> 0 | O32: 2 | AA32: 1 | AB32: 1 | AC32: 1 | AZ32: 1 | BA32: =IF(AZ32=1,G32,0) -> 0 | BB32: =IF(AZ32=2,G32,0) -> 0 | BC32: =IF(AZ32=3,G32,0) -> 0 | BD32: =IF(AZ32=4,G32,0) -> 0 | BE32: =IF(AZ32=5,G32,0) -> 0 | CA32: 1 | CB32: 1
C33: Komunikace Kadeřavec I.:650,00 | E33: 650 | M33: Komunikace Kadeřavec I.:650,00
A34: 11 | B34: 938909311R00 | C34: Odstranění nánosu z povrchu živičného nebo beton. | D34: m2 | E34: 650 | G34: =E34*F34 -> 0 | H34: 0 | I34: =E34*H34 -> 0 | J34: 0 | K34: =E34*J34 -> 0 | O34: 2 | AA34: 1 | AB34: 1 | AC34: 1 | AZ34: 1 | BA34: =IF(AZ34=1,G34,0) -> 0 | BB34: =IF(AZ34=2,G34,0) -> 0 | BC34: =IF(AZ34=3,G34,0) -> 0 | BD34: =IF(AZ34=4,G34,0) -> 0 | BE34: =IF(AZ34=5,G34,0) -> 0 | CA34: 1 | CB34: 1
C35: Komunikace Kadeřavec I.:650,00 | E35: 650 | M35: Komunikace Kadeřavec I.:650,00
B36: Celkem za | C36: 93 Dokončovací práce inženýrských staveb | G36: =SUM(G31:G35) -> 0 | I36: =SUM(I31:I35) -> 0.0065 | K36: =SUM(K31:K35) -> 0 | O36: 4 | BA36: =SUM(BA31:BA35) -> 0 | BB36: =SUM(BB31:BB35) -> 0 | BC36: =SUM(BC31:BC35) -> 0 | BD36: =SUM(BD31:BD35) -> 0 | BE36: =SUM(BE31:BE35) -> 0
A37: Díl: | B37: 99 | C37: Staveništní přesun hmot | O37: 1
A38: 12 | B38: 998225311R00 | C38: Přesun hmot, oprava komunikací, kryt živič. a bet. | D38: t | E38: 149.06775 | G38: =E38*F38 -> 0 | H38: 0 | I38: =E38*H38 -> 0 | K38: =E38*J38 -> 0 | O38: 2 | AA38: 7 | AB38: 1 | AC38: 2 | AZ38: 1 | BA38: =IF(AZ38=1,G38,0) -> 0 | BB38: =IF(AZ38=2,G38,0) -> 0 | BC38: =IF(AZ38=3,G38,0) -> 0 | BD38: =IF(AZ38=4,G38,0) -> 0 | BE38: =IF(AZ38=5,G38,0) -> 0 | CA38: 7 | CB38: 1
B39: Celkem za | C39: 99 Staveništní přesun hmot | G39: =SUM(G37:G38) -> 0 | I39: =SUM(I37:I38) -> 0 | K39: =SUM(K37:K38) -> 0 | O39: 4 | BA39: =SUM(BA37:BA38) -> 0 | BB39: =SUM(BB37:BB38) -> 0 | BC39: =SUM(BC37:BC38) -> 0 | BD39: =SUM(BD37:BD38) -> 0 | BE39: =SUM(BE37:BE38) -> 0

Sheet 103 3297103 KL
A1: POLOŽKOVÝ ROZPOČET
A2: Rozpočet | C2: 3297/103 | D2: Oprava komunikace "Ve Struhách" k čp. 908 | F2: JKSO | G2: 822.29
A4: Objekt | F4: SKP
A5: 103 | C5: Oprava komunikace "Ve Struhách" | F5: Měrná jednotka | G5: m2
A6: Stavba | F6: Počet jednotek | G6: 350
A7: 3297 | C7: Turnov - Opravy MK a chodníků | F7: Náklady na m.j. | G7: =IF(G6=0,,ROUND((F30+F32)/G6,1)) -> 0
A8: Projektant | F8: Typ rozpočtu
A9: Zpracovatel projektu
A10: Objednatel | C10: Město TURNOV
A11: Dodavatel | C11: . | F11: Zakázkové číslo
A12: Rozpočtoval | F12: Počet listů
A13: ROZPOČTOVÉ NÁKLADY
A14: Základní rozpočtové náklady | D14: Ostatní a vedlejší rozpočtové náklady
B15: HSV celkem | C15: ='103 3297103 Rek'!E12 -> 0 | D15: ='103 3297103 Rek'!A17 -> Zařízení staveniště | G15: ='103 3297103 Rek'!I17 -> 0
A16: Z | B16: PSV celkem | C16: ='103 3297103 Rek'!F12 -> 0 | D16: ='103 3297103 Rek'!A18 -> Provoz investora | G16: ='103 3297103 Rek'!I18 -> 0
A17: R | B17: M práce celkem | C17: ='103 3297103 Rek'!H12 -> 0 | D17: ='103 3297103 Rek'!A19 -> Kompletační činnost (IČD) | G17: ='103 3297103 Rek'!I19 -> 0
A18: N | B18: M dodávky celkem | C18: ='103 3297103 Rek'!G12 -> 0 | D18: ='103 3297103 Rek'!A20 -> Vytýčení stavby a podz. inženýrských sítí | G18: ='103 3297103 Rek'!I20 -> 0
A19: ZRN celkem | C19: =SUM(C15:C18) -> 0 | D19: ='103 3297103 Rek'!A21 -> DIO | G19: ='103 3297103 Rek'!I21 -> 0
A21: HZS | C21: ='103 3297103 Rek'!I12 -> 0
A22: ZRN+HZS | C22: =C19+C21 -> 0
A23: ZRN+ost.náklady+HZS | C23: =C22+G23 -> 0 | D23: Ostatní náklady celkem | G23: ='103 3297103 Rek'!H22 -> 0
A24: Vypracoval | D24: Za zhotovitele | F24: Za objednatele
A25: Jméno : | D25: Jméno : | F25: Jméno :
A26: Datum : | D26: Datum : | F26: Datum :
A28: Podpis : | D28: Podpis: | F28: Podpis:
A30: Základ pro DPH | C30: 21 | D30: % | F30: =C23-F32 -> 0
A31: DPH | C31: =C30 -> 21 | D31: % | F31: =ROUND(PRODUCT(F30,C31/100),0) -> 0
A32: Základ pro DPH | C32: 0 | D32: % | F32: 0
A33: DPH | C33: =C32 -> 0 | D33: % | F33: =ROUND(PRODUCT(F32,C33/100),0) -> 0
A34: CENA ZA OBJEKT CELKEM | F34: =ROUND(SUM(F30:F33),0) -> 0
A36: Poznámka :

Sheet 103 3297103 Rek
A1: Stavba : | C1: 3297 Turnov - Opravy MK a chodníků | G1: Rozpočet : | H1: 3297/103
A2: Objekt : | C2: 103 Oprava komunikace "Ve Struhách" | G2: Oprava komunikace "Ve Struhách" k čp. 908
A4: REKAPITULACE STAVEBNÍCH DÍLŮ
B6: Stavební díl | E6: HSV | F6: PSV | G6: Dodávka | H6: Montáž | I6: HZS
A7: ='103 3297103 Pol'!B7 -> 1 | B7: ='103 3297103 Pol'!C7 -> Zemní práce | E7: ='103 3297103 Pol'!BA16 -> 0 | F7: ='103 3297103 Pol'!BB16 -> 0 | G7: ='103 3297103 Pol'!BC16 -> 0 | H7: ='103 3297103 Pol'!BD16 -> 0 | I7: ='103 3297103 Pol'!BE16 -> 0
A8: ='103 3297103 Pol'!B17 -> 5 | B8: ='103 3297103 Pol'!C17 -> Komunikace | E8: ='103 3297103 Pol'!BA30 -> 0 | F8: ='103 3297103 Pol'!BB30 -> 0 | G8: ='103 3297103 Pol'!BC30 -> 0 | H8: ='103 3297103 Pol'!BD30 -> 0 | I8: ='103 3297103 Pol'!BE30 -> 0
A9: ='103 3297103 Pol'!B31 -> 8 | B9: ='103 3297103 Pol'!C31 -> Trubní vedení | E9: ='103 3297103 Pol'!BA34 -> 0 | F9: ='103 3297103 Pol'!BB34 -> 0 | G9: ='103 3297103 Pol'!BC34 -> 0 | H9: ='103 3297103 Pol'!BD34 -> 0 | I9: ='103 3297103 Pol'!BE34 -> 0
A10: ='103 3297103 Pol'!B35 -> 91 | B10: ='103 3297103 Pol'!C35 -> Doplňující práce na komunikaci | E10: ='103 3297103 Pol'!BA40 -> 0 | F10: ='103 3297103 Pol'!BB40 -> 0 | G10: ='103 3297103 Pol'!BC40 -> 0 | H10: ='103 3297103 Pol'!BD40 -> 0 | I10: ='103 3297103 Pol'!BE40 -> 0
A11: ='103 3297103 Pol'!B41 -> 99 | B11: ='103 3297103 Pol'!C41 -> Staveništní přesun hmot | E11: ='103 3297103 Pol'!BA43 -> 0 | F11: ='103 3297103 Pol'!BB43 -> 0 | G11: ='103 3297103 Pol'!BC43 -> 0 | H11: ='103 3297103 Pol'!BD43 -> 0 | I11: ='103 3297103 Pol'!BE43 -> 0
B12: CELKEM OBJEKT | E12: =SUM(E7:E11) -> 0 | F12: =SUM(F7:F11) -> 0 | G12: =SUM(G7:G11) -> 0 | H12: =SUM(H7:H11) -> 0 | I12: =SUM(I7:I11) -> 0
A14: OSTATNÍ A VEDLEJŠÍ ROZPOČTOVÉ NÁKLADY
A16: Název OaVRN | E16: Kč | I16: Kč
A17: Zařízení staveniště | E17: 0 | I17: =E17+F17*G17/100 -> 0 | BA17: 2
A18: Provoz investora | E18: 0 | I18: =E18+F18*G18/100 -> 0 | BA18: 1
A19: Kompletační činnost (IČD) | E19: 0 | I19: =E19+F19*G19/100 -> 0 | BA19: 2
A20: Vytýčení stavby a podz. inženýrských sítí | E20: 0 | I20: =E20+F20*G20/100 -> 0 | BA20: 0
A21: DIO | E21: 0 | I21: =E21+F21*G21/100 -> 0 | BA21: 0
B22: CELKEM OaVRN | H22: =SUM(I17:I21) -> 0

Sheet 103 3297103 Pol
A1: Položkový rozpočet
A3: Stavba : | C3: 3297 Turnov - Opravy MK a chodníků | E3: Rozpočet: | F3: ='103 3297103 Rek'!H1 -> 3297/103
A4: Objekt : | C4: 103 Oprava komunikace "Ve Struhách" | E4: ='103 3297103 Rek'!G2 -> Oprava komunikace "Ve Struhách" k čp. 908
A6: P.č. | B6: Číslo položky | C6: Název položky | D6: MJ | E6: množství | F6: cena / MJ | G6: celkem (Kč) | H6: Jednotková hmotnost | I6: Celková hmotnost | J6: Jednotková dem.hmot. | K6: Celková dem.hmot.
A7: Díl: | B7: 1 | C7: Zemní práce | O7: 1
A8: 1 | B8: 111301111R00 | C8: Sejmutí drnu tl. do 10 cm, s přemístěním do 50 m | D8: m2 | E8: 57.5 | G8: =E8*F8 -> 0 | H8: 0 | I8: =E8*H8 -> 0 | J8: 0 | K8: =E8*J8 -> 0 | O8: 2 | AA8: 1 | AB8: 1 | AC8: 1 | AZ8: 1 | BA8: =IF(AZ8=1,G8,0) -> 0 | BB8: =IF(AZ8=2,G8,0) -> 0 | BC8: =IF(AZ8=3,G8,0) -> 0 | BD8: =IF(AZ8=4,G8,0) -> 0 | BE8: =IF(AZ8=5,G8,0) -> 0 | CA8: 1 | CB8: 1
C9: Komunikace Ve Struhách:115,00*0,25*2 | E9: 57.5 | M9: Komunikace Ve Struhách:115,00*0,25*2
A10: 2 | B10: 113108442R00 | C10: Rozrytí krytu,kamenivo bez zhut.,se živič. pojivem | D10: m2 | E10: 360 | G10: =E10*F10 -> 0 | H10: 0 | I10: =E10*H10 -> 0 | J10: 0 | K10: =E10*J10 -> 0 | O10: 2 | AA10: 1 | AB10: 0 | AC10: 0 | AZ10: 1 | BA10: =IF(AZ10=1,G10,0) -> 0 | BB10: =IF(AZ10=2,G10,0) -> 0 | BC10: =IF(AZ10=3,G10,0) -> 0 | BD10: =IF(AZ10=4,G10,0) -> 0 | BE10: =IF(AZ10=5,G10,0) -> 0 | CA10: 1 | CB10: 0
C11: Komunikace Ve Struhách:360,00 | E11: 360 | M11: Komunikace Ve Struhách:360,00
A12: 3 | B12: 162702111RSZ | C12: Vodorovné přemístění drnu na skládku zhotovitele | D12: m2 | E12: 57.5 | G12: =E12*F12 -> 0 | H12: 0 | I12: =E12*H12 -> 0 | J12: 0 | K12: =E12*J12 -> 0 | O12: 2 | AA12: 1 | AB12: 1 | AC12: 1 | AZ12: 1 | BA12: =IF(AZ12=1,G12,0) -> 0 | BB12: =IF(AZ12=2,G12,0) -> 0 | BC12: =IF(AZ12=3,G12,0) -> 0 | BD12: =IF(AZ12=4,G12,0) -> 0 | BE12: =IF(AZ12=5,G12,0) -> 0 | CA12: 1 | CB12: 1
C13: Komunikace Ve Struhách:115,00*0,25*2 | E13: 57.5 | M13: Komunikace Ve Struhách:115,00*0,25*2
A14: 4 | B14: 162702199R00 | C14: Poplatek za skládku drnu | D14: m3 | E14: 5.75 | G14: =E14*F14 -> 0 | H14: 0 | I14: =E14*H14 -> 0 | J14: 0 | K14: =E14*J14 -> 0 | O14: 2 | AA14: 1 | AB14: 1 | AC14: 1 | AZ14: 1 | BA14: =IF(AZ14=1,G14,0) -> 0 | BB14: =IF(AZ14=2,G14,0) -> 0 | BC14: =IF(AZ14=3,G14,0) -> 0 | BD14: =IF(AZ14=4,G14,0) -> 0 | BE14: =IF(AZ14=5,G14,0) -> 0 | CA14: 1 | CB14: 1
C15: Komunikace Ve Struhách:115,00*0,25*2*0,10 | E15: 5.75 | M15: Komunikace Ve Struhách:115,00*0,25*2*0,10
B16: Celkem za | C16: 1 Zemní práce | G16: =SUM(G7:G15) -> 0 | I16: =SUM(I7:I15) -> 0 | K16: =SUM(K7:K15) -> 0 | O16: 4 | BA16: =SUM(BA7:BA15) -> 0 | BB16: =SUM(BB7:BB15) -> 0 | BC16: =SUM(BC7:BC15) -> 0 | BD16: =SUM(BD7:BD15) -> 0 | BE16: =SUM(BE7:BE15) -> 0
A17: Díl: | B17: 5 | C17: Komunikace | O17: 1
A18: 5 | B18: 564901113R00 | C18: Recyklace podkladu s přid.kameniva drc. 0,08 m3/m2 | D18: m2 | E18: 360 | G18: =E18*F18 -> 0 | H18: 0.13769 | I18: =E18*H18 -> 49.5684 | J18: 0 | K18: =E18*J18 -> 0 | O18: 2 | AA18: 1 | AB18: 1 | AC18: 1 | AZ18: 1 | BA18: =IF(AZ18=1,G18,0) -> 0 | BB18: =IF(AZ18=2,G18,0) -> 0 | BC18: =IF(AZ18=3,G18,0) -> 0 | BD18: =IF(AZ18=4,G18,0) -> 0 | BE18: =IF(AZ18=5,G18,0) -> 0 | CA18: 1 | CB18: 1
C19: Komunikace Ve Struhách:360,00 | E19: 360 | M19: Komunikace Ve Struhách:360,00
A20: 6 | B20: 569731111R00 | C20: Zpevnění krajnic kamenivem drceným tl. 10 cm | D20: m2 | E20: 46 | G20: =E20*F20 -> 0 | H20: 0.19695 | I20: =E20*H20 -> 9.0597 | J20: 0 | K20: =E20*J20 -> 0 | O20: 2 | AA20: 1 | AB20: 1 | AC20: 1 | AZ20: 1 | BA20: =IF(AZ20=1,G20,0) -> 0 | BB20: =IF(AZ20=2,G20,0) -> 0 | BC20: =IF(AZ20=3,G20,0) -> 0 | BD20: =IF(AZ20=4,G20,0) -> 0 | BE20: =IF(AZ20=5,G20,0) -> 0 | CA20: 1 | CB20: 1
C21: Komunikace Ve Struhách:115,00*0,20*2 | E21: 46 | M21: Komunikace Ve Struhách:115,00*0,20*2
A22: 7 | B22: 572713112R00 | C22: Vyrovnání povrchu krytů kamen. obaleným asfaltem | D22: t | E22: 36 | G22: =E22*F22 -> 0 | H22: 1 | I22: =E22*H22 -> 36 | J22: 0 | K22: =E22*J22 -> 0 | O22: 2 | AA22: 1 | AB22: 1 | AC22: 1 | AZ22: 1 | BA22: =IF(AZ22=1,G22,0) -> 0 | BB22: =IF(AZ22=2,G22,0) -> 0 | BC22: =IF(AZ22=3,G22,0) -> 0 | BD22: =IF(AZ22=4,G22,0) -> 0 | BE22: =IF(AZ22=5,G22,0) -> 0 | CA22: 1 | CB22: 1
C23: Komunikace Ve Struhách:360,00*(0,02+0,06)/2*2,5 | E23: 36 | M23: Komunikace Ve Struhách:360,00*(0,02+0,06)/2*2,5
A24: 8 | B24: 573231111R00 | C24: Postřik živičný spojovací z emulze 0,5-0,7 kg/m2 | D24: m2 | E24: 360 | G24: =E24*F24 -> 0 | H24: 0.00071 | I24: =E24*H24 -> 0.2556 | J24: 0 | K24: =E24*J24 -> 0 | O24: 2 | AA24: 1 | AB24: 1 | AC24: 1 | AZ24: 1 | BA24: =IF(AZ24=1,G24,0) -> 0 | BB24: =IF(AZ24=2,G24,0) -> 0 | BC24: =IF(AZ24=3,G24,0) -> 0 | BD24: =IF(AZ24=4,G24,0) -> 0 | BE24: =IF(AZ24=5,G24,0) -> 0 | CA24: 1 | CB24: 1
C25: Komunikace Ve Struhách:360,00 | E25: 360 | M25: Komunikace Ve Struhách:360,00
A26: 9 | B26: 577151113RT2 | C26: Beton asfalt. ACO 16+ obrusný, š. do 3 m, tl. 6 cm plochy 201-1000 m2 | D26: m2 | E26: 360 | G26: =E26*F26 -> 0 | H26: 0.15559 | I26: =E26*H26 -> 56.0124 | J26: 0 | K26: =E26*J26 -> 0 | O26: 2 | AA26: 1 | AB26: 1 | AC26: 1 | AZ26: 1 | BA26: =IF(AZ26=1,G26,0) -> 0 | BB26: =IF(AZ26=2,G26,0) -> 0 | BC26: =IF(AZ26=3,G26,0) -> 0 | BD26: =IF(AZ26=4,G26,0) -> 0 | BE26: =IF(AZ26=5,G26,0) -> 0 | CA26: 1 | CB26: 1
C27: Komunikace Ve Struhách:360,00 | E27: 360 | M27: Komunikace Ve Struhách:360,00
A28: 10 | B28: 597081111R00 | C28: Svodnice ocelová Viaqua Forest 120 s roštem | D28: m | E28: 16 | G28: =E28*F28 -> 0 | H28: 0.485 | I28: =E28*H28 -> 7.76 | J28: 0 | K28: =E28*J28 -> 0 | O28: 2 | AA28: 1 | AB28: 1 | AC28: 1 | AZ28: 1 | BA28: =IF(AZ28=1,G28,0) -> 0 | BB28: =IF(AZ28=2,G28,0) -> 0 | BC28: =IF(AZ28=3,G28,0) -> 0 | BD28: =IF(AZ28=4,G28,0) -> 0 | BE28: =IF(AZ28=5,G28,0) -> 0 | CA28: 1 | CB28: 1
C29: Komunikace Ve Struhách:4,00*4 | E29: 16 | M29: Komunikace Ve Struhách:4,00*4
B30: Celkem za | C30: 5 Komunikace | G30: =SUM(G17:G29) -> 0 | I30: =SUM(I17:I29) -> 158.6561 | K30: =SUM(K17:K29) -> 0 | O30: 4 | BA30: =SUM(BA17:BA29) -> 0 | BB30: =SUM(BB17:BB29) -> 0 | BC30: =SUM(BC17:BC29) -> 0 | BD30: =SUM(BD17:BD29) -> 0 | BE30: =SUM(BE17:BE29) -> 0
A31: Díl: | B31: 8 | C31: Trubní vedení | O31: 1
A32: 11 | B32: 899231111R00 | C32: Výšková úprava vstupu do 20 cm, zvýšení mříže | D32: kus | E32: 4 | G32: =E32*F32 -> 0 | H32: 0.43382 | I32: =E32*H32 -> 1.73528 | J32: 0 | K32: =E32*J32 -> 0 | O32: 2 | AA32: 1 | AB32: 1 | AC32: 1 | AZ32: 1 | BA32: =IF(AZ32=1,G32,0) -> 0 | BB32: =IF(AZ32=2,G32,0) -> 0 | BC32: =IF(AZ32=3,G32,0) -> 0 | BD32: =IF(AZ32=4,G32,0) -> 0 | BE32: =IF(AZ32=5,G32,0) -> 0 | CA32: 1 | CB32: 1
C33: Komunikace Ve Struhách - stávající UV:4 | E33: 4 | M33: Komunikace Ve Struhách - stávající UV:4
B34: Celkem za | C34: 8 Trubní vedení | G34: =SUM(G31:G33) -> 0 | I34: =SUM(I31:I33) -> 1.73528 | K34: =SUM(K31:K33) -> 0 | O34: 4 | BA34: =SUM(BA31:BA33) -> 0 | BB34: =SUM(BB31:BB33) -> 0 | BC34: =SUM(BC31:BC33) -> 0 | BD34: =SUM(BD31:BD33) -> 0 | BE34: =SUM(BE31:BE33) -> 0
A35: Díl: | B35: 91 | C35: Doplňující práce na komunikaci | O35: 1
A36: 12 | B36: 919731122R00 | C36: Zarovnání styčné plochy živičné tl. do 10 cm | D36: m | E36: 2.6 | G36: =E36*F36 -> 0 | H36: 0 | I36: =E36*H36 -> 0 | J36: 0 | K36: =E36*J36 -> 0 | O36: 2 | AA36: 1 | AB36: 1 | AC36: 1 | AZ36: 1 | BA36: =IF(AZ36=1,G36,0) -> 0 | BB36: =IF(AZ36=2,G36,0) -> 0 | BC36: =IF(AZ36=3,G36,0) -> 0 | BD36: =IF(AZ36=4,G36,0) -> 0 | BE36: =IF(AZ36=5,G36,0) -> 0 | CA36: 1 | CB36: 1
C37: Komunikace Ve Struhách:2,60 | E37: 2.6 | M37: Komunikace Ve Struhách:2,60
A38: 13 | B38: 919735112R00 | C38: Řezání stávajícího živičného krytu tl. 5 - 10 cm | D38: m | E38: 2.6 | G38: =E38*F38 -> 0 | H38: 0 | I38: =E38*H38 -> 0 | J38: 0 | K38: =E38*J38 -> 0 | O38: 2 | AA38: 1 | AB38: 1 | AC38: 1 | AZ38: 1 | BA38: =IF(AZ38=1,G38,0) -> 0 | BB38: =IF(AZ38=2,G38,0) -> 0 | BC38: =IF(AZ38=3,G38,0) -> 0 | BD38: =IF(AZ38=4,G38,0) -> 0 | BE38: =IF(AZ38=5,G38,0) -> 0 | CA38: 1 | CB38: 1
C39: Komunikace Ve Struhách:2,60 | E39: 2.6 | M39: Komunikace Ve Struhách:2,60
B40: Celkem za | C40: 91 Doplňující práce na komunikaci | G40: =SUM(G35:G39) -> 0 | I40: =SUM(I35:I39) -> 0 | K40: =SUM(K35:K39) -> 0 | O40: 4 | BA40: =SUM(BA35:BA39) -> 0 | BB40: =SUM(BB35:BB39) -> 0 | BC40: =SUM(BC35:BC39) -> 0 | BD40: =SUM(BD35:BD39) -> 0 | BE40: =SUM(BE35:BE39) -> 0
A41: Díl: | B41: 99 | C41: Staveništní přesun hmot | O41: 1
A42: 14 | B42: 998225311R00 | C42: Přesun hmot, oprava komunikací, kryt živič. a bet. | D42: t | E42: 160.39138 | G42: =E42*F42 -> 0 | H42: 0 | I42: =E42*H42 -> 0 | K42: =E42*J42 -> 0 | O42: 2 | AA42: 7 | AB42: 1 | AC42: 2 | AZ42: 1 | BA42: =IF(AZ42=1,G42,0) -> 0 | BB42: =IF(AZ42=2,G42,0) -> 0 | BC42: =IF(AZ42=3,G42,0) -> 0 | BD42: =IF(AZ42=4,G42,0) -> 0 | BE42: =IF(AZ42=5,G42,0) -> 0 | CA42: 7 | CB42: 1
B43: Celkem za | C43: 99 Staveništní přesun hmot | G43: =SUM(G41:G42) -> 0 | I43: =SUM(I41:I42) -> 0 | K43: =SUM(K41:K42) -> 0 | O43: 4 | BA43: =SUM(BA41:BA42) -> 0 | BB43: =SUM(BB41:BB42) -> 0 | BC43: =SUM(BC41:BC42) -> 0 | BD43: =SUM(BD41:BD42) -> 0 | BE43: =SUM(BE41:BE42) -> 0

Sheet 104 3297104 KL
A1: POLOŽKOVÝ ROZPOČET
A2: Rozpočet | C2: 3297/104 | D2: Oprava komunikace "Pod Stránkou" | F2: JKSO | G2: 822.29
A4: Objekt | F4: SKP
A5: 104 | C5: Oprava komunikace "Pod Stránkou" | F5: Měrná jednotka | G5: m2
A6: Stavba | F6: Počet jednotek | G6: 180
A7: 3297 | C7: Turnov - Opravy MK a chodníků | F7: Náklady na m.j. | G7: =IF(G6=0,,ROUND((F30+F32)/G6,1)) -> 0
A8: Projektant | F8: Typ rozpočtu
A9: Zpracovatel projektu
A10: Objednatel | C10: Město TURNOV
A11: Dodavatel | C11: . | F11: Zakázkové číslo
A12: Rozpočtoval | F12: Počet listů
A13: ROZPOČTOVÉ NÁKLADY
A14: Základní rozpočtové náklady | D14: Ostatní a vedlejší rozpočtové náklady
B15: HSV celkem | C15: ='104 3297104 Rek'!E11 -> 0 | D15: ='104 3297104 Rek'!A16 -> Zařízení staveniště | G15: ='104 3297104 Rek'!I16 -> 0
A16: Z | B16: PSV celkem | C16: ='104 3297104 Rek'!F11 -> 0 | D16: ='104 3297104 Rek'!A17 -> Provoz investora | G16: ='104 3297104 Rek'!I17 -> 0
A17: R | B17: M práce celkem | C17: ='104 3297104 Rek'!H11 -> 0 | D17: ='104 3297104 Rek'!A18 -> Kompletační činnost (IČD) | G17: ='104 3297104 Rek'!I18 -> 0
A18: N | B18: M dodávky celkem | C18: ='104 3297104 Rek'!G11 -> 0 | D18: ='104 3297104 Rek'!A19 -> Vytýčení stavby a podz. inženýrských sítí | G18: ='104 3297104 Rek'!I19 -> 0
A19: ZRN celkem | C19: =SUM(C15:C18) -> 0 | D19: ='104 3297104 Rek'!A20 -> Dokumentace skutečného provedení | G19: ='104 3297104 Rek'!I20 -> 0
D20: ='104 3297104 Rek'!A21 -> DIO | G20: ='104 3297104 Rek'!I21 -> 0
A21: HZS | C21: ='104 3297104 Rek'!I11 -> 0
A22: ZRN+HZS | C22: =C19+C21 -> 0
A23: ZRN+ost.náklady+HZS | C23: =C22+G23 -> 0 | D23: Ostatní náklady celkem | G23: ='104 3297104 Rek'!H22 -> 0
A24: Vypracoval | D24: Za zhotovitele | F24: Za objednatele
A25: Jméno : | D25: Jméno : | F25: Jméno :
A26: Datum : | D26: Datum : | F26: Datum :
A28: Podpis : | D28: Podpis: | F28: Podpis:
A30: Základ pro DPH | C30: 21 | D30: % | F30: =C23-F32 -> 0
A31: DPH | C31: =C30 -> 21 | D31: % | F31: =ROUND(PRODUCT(F30,C31/100),0) -> 0
A32: Základ pro DPH | C32: 0 | D32: % | F32: 0
A33: DPH | C33: =C32 -> 0 | D33: % | F33: =ROUND(PRODUCT(F32,C33/100),0) -> 0
A34: CENA ZA OBJEKT CELKEM | F34: =ROUND(SUM(F30:F33),0) -> 0
A36: Poznámka :

Sheet 104 3297104 Rek
A1: Stavba : | C1: 3297 Turnov - Opravy MK a chodníků | G1: Rozpočet : | H1: 3297/104
A2: Objekt : | C2: 104 Oprava komunikace "Pod Stránkou" | G2: Oprava komunikace "Pod Stránkou"
A4: REKAPITULACE STAVEBNÍCH DÍLŮ
B6: Stavební díl | E6: HSV | F6: PSV | G6: Dodávka | H6: Montáž | I6: HZS
A7: ='104 3297104 Pol'!B7 -> 1 | B7: ='104 3297104 Pol'!C7 -> Zemní práce | E7: ='104 3297104 Pol'!BA18 -> 0 | F7: ='104 3297104 Pol'!BB18 -> 0 | G7: ='104 3297104 Pol'!BC18 -> 0 | H7: ='104 3297104 Pol'!BD18 -> 0 | I7: ='104 3297104 Pol'!BE18 -> 0
A8: ='104 3297104 Pol'!B19 -> 5 | B8: ='104 3297104 Pol'!C19 -> Komunikace | E8: ='104 3297104 Pol'!BA32 -> 0 | F8: ='104 3297104 Pol'!BB32 -> 0 | G8: ='104 3297104 Pol'!BC32 -> 0 | H8: ='104 3297104 Pol'!BD32 -> 0 | I8: ='104 3297104 Pol'!BE32 -> 0
A9: ='104 3297104 Pol'!B33 -> 91 | B9: ='104 3297104 Pol'!C33 -> Doplňující práce na komunikaci | E9: ='104 3297104 Pol'!BA38 -> 0 | F9: ='104 3297104 Pol'!BB38 -> 0 | G9: ='104 3297104 Pol'!BC38 -> 0 | H9: ='104 3297104 Pol'!BD38 -> 0 | I9: ='104 3297104 Pol'!BE38 -> 0
A10: ='104 3297104 Pol'!B39 -> 99 | B10: ='104 3297104 Pol'!C39 -> Staveništní přesun hmot | E10: ='104 3297104 Pol'!BA41 -> 0 | F10: ='104 3297104 Pol'!BB41 -> 0 | G10: ='104 3297104 Pol'!BC41 -> 0 | H10: ='104 3297104 Pol'!BD41 -> 0 | I10: ='104 3297104 Pol'!BE41 -> 0
B11: CELKEM OBJEKT | E11: =SUM(E7:E10) -> 0 | F11: =SUM(F7:F10) -> 0 | G11: =SUM(G7:G10) -> 0 | H11: =SUM(H7:H10) -> 0 | I11: =SUM(I7:I10) -> 0
A13: OSTATNÍ A VEDLEJŠÍ ROZPOČTOVÉ NÁKLADY
A15: Název OaVRN | E15: Kč | I15: Kč
A16: Zařízení staveniště | E16: 0 | I16: =E16+F16*G16/100 -> 0 | BA16: 2
A17: Provoz investora | E17: 0 | I17: 0 | BA17: 1
A18: Kompletační činnost (IČD) | E18: 0 | I18: 0 | BA18: 2
A19: Vytýčení stavby a podz. inženýrských sítí | E19: 0 | I19: 0 | BA19: 0
A20: Dokumentace skutečného provedení | E20: 0 | I20: 0 | BA20: 0
A21: DIO | E21: 0 | I21: 0 | BA21: 0
B22: CELKEM OaVRN | H22: =SUM(I16:I21) -> 0

Sheet 104 3297104 Pol
A1: Položkový rozpočet
A3: Stavba : | C3: 3297 Turnov - Opravy MK a chodníků | E3: Rozpočet: | F3: ='104 3297104 Rek'!H1 -> 3297/104
A4: Objekt : | C4: 104 Oprava komunikace "Pod Stránkou" | E4: ='104 3297104 Rek'!G2 -> Oprava komunikace "Pod Stránkou"
A6: P.č. | B6: Číslo položky | C6: Název položky | D6: MJ | E6: množství | F6: cena / MJ | G6: celkem (Kč) | H6: Jednotková hmotnost | I6: Celková hmotnost | J6: Jednotková dem.hmot. | K6: Celková dem.hmot.
A7: Díl: | B7: 1 | C7: Zemní práce | O7: 1
A8: 1 | B8: 122202201R00 | C8: Odkopávky pro silnice v hor. 3 do 100 m3 | D8: m3 | E8: 28.8 | G8: =E8*F8 -> 0 | H8: 0 | I8: =E8*H8 -> 0 | J8: 0 | K8: =E8*J8 -> 0 | O8: 2 | AA8: 1 | AB8: 1 | AC8: 1 | AZ8: 1 | BA8: =IF(AZ8=1,G8,0) -> 0 | BB8: =IF(AZ8=2,G8,0) -> 0 | BC8: =IF(AZ8=3,G8,0) -> 0 | BD8: =IF(AZ8=4,G8,0) -> 0 | BE8: =IF(AZ8=5,G8,0) -> 0 | CA8: 1 | CB8: 1
C9: Komunikace Pod Stránkou doplnění části plochy po výkopech:180,00/2*0,32 | E9: 28.8 | M9: Komunikace Pod Stránkou doplnění části plochy po výkopech:180,00/2*0,32
A10: 2 | B10: 122202209R00 | C10: Příplatek za lepivost - odkop. pro silnice v hor.3 | D10: m3 | E10: 14.4 | G10: =E10*F10 -> 0 | H10: 0 | I10: =E10*H10 -> 0 | J10: 0 | K10: =E10*J10 -> 0 | O10: 2 | AA10: 1 | AB10: 1 | AC10: 1 | AZ10: 1 | BA10: =IF(AZ10=1,G10,0) -> 0 | BB10: =IF(AZ10=2,G10,0) -> 0 | BC10: =IF(AZ10=3,G10,0) -> 0 | BD10: =IF(AZ10=4,G10,0) -> 0 | BE10: =IF(AZ10=5,G10,0) -> 0 | CA10: 1 | CB10: 1
C11: Komunikace Pod Stránkou doplnění části plochy po výkopech:180,00/2*0,32*0,5 | E11: 14.4 | M11: Komunikace Pod Stránkou doplnění části plochy po výkopech:180,00/2*0,32*0,5
A12: 3 | B12: 162701105RSZ | C12: Vodorovné přemístění výkopku z hor.1-4 na skládku zhotovitele | D12: m3 | E12: 28.8 | G12: =E12*F12 -> 0 | H12: 0 | I12: =E12*H12 -> 0 | J12: 0 | K12: =E12*J12 -> 0 | O12: 2 | AA12: 1 | AB12: 1 | AC12: 1 | AZ12: 1 | BA12: =IF(AZ12=1,G12,0) -> 0 | BB12: =IF(AZ12=2,G12,0) -> 0 | BC12: =IF(AZ12=3,G12,0) -> 0 | BD12: =IF(AZ12=4,G12,0) -> 0 | BE12: =IF(AZ12=5,G12,0) -> 0 | CA12: 1 | CB12: 1
C13: Komunikace Pod Stránkou doplnění části plochy po výkopech:180,00/2*0,32 | E13: 28.8 | M13: Komunikace Pod Stránkou doplnění části plochy po výkopech:180,00/2*0,32
A14: 4 | B14: 181101102R00 | C14: Úprava pláně v zářezech v hor. 1-4, se zhutněním | D14: m2 | E14: 90 | G14: =E14*F14 -> 0 | H14: 0 | I14: =E14*H14 -> 0 | J14: 0 | K14: =E14*J14 -> 0 | O14: 2 | AA14: 1 | AB14: 1 | AC14: 1 | AZ14: 1 | BA14: =IF(AZ14=1,G14,0) -> 0 | BB14: =IF(AZ14=2,G14,0) -> 0 | BC14: =IF(AZ14=3,G14,0) -> 0 | BD14: =IF(AZ14=4,G14,0) -> 0 | BE14: =IF(AZ14=5,G14,0) -> 0 | CA14: 1 | CB14: 1
C15: Komunikace Pod Stránkou doplnění části plochy po výkopech:180,00/2 | E15: 90 | M15: Komunikace Pod Stránkou doplnění části plochy po výkopech:180,00/2
A16: 5 | B16: 199000002R00 | C16: Poplatek za skládku horniny | D16: m3 | E16: 28.8 | G16: =E16*F16 -> 0 | H16: 0 | I16: =E16*H16 -> 0 | J16: 0 | K16: =E16*J16 -> 0 | O16: 2 | AA16: 1 | AB16: 1 | AC16: 1 | AZ16: 1 | BA16: =IF(AZ16=1,G16,0) -> 0 | BB16: =IF(AZ16=2,G16,0) -> 0 | BC16: =IF(AZ16=3,G16,0) -> 0 | BD16: =IF(AZ16=4,G16,0) -> 0 | BE16: =IF(AZ16=5,G16,0) -> 0 | CA16: 1 | CB16: 1
C17: Komunikace Pod Stránkou doplnění části plochy po výkopech:180,00/2*0,32 | E17: 28.8 | M17: Komunikace Pod Stránkou doplnění části plochy po výkopech:180,00/2*0,32
B18: Celkem za | C18: 1 Zemní práce | G18: =SUM(G7:G17) -> 0 | I18: =SUM(I7:I17) -> 0 | K18: =SUM(K7:K17) -> 0 | O18: 4 | BA18: =SUM(BA7:BA17) -> 0 | BB18: =SUM(BB7:BB17) -> 0 | BC18: =SUM(BC7:BC17) -> 0 | BD18: =SUM(BD7:BD17) -> 0 | BE18: =SUM(BE7:BE17) -> 0
A19: Díl: | B19: 5 | C19: Komunikace | O19: 1
A20: 6 | B20: 564851111RT2 | C20: Podklad ze štěrkodrti po zhutnění tloušťky 15 cm štěrkodrť frakce 0-32 mm | D20: m2 | E20: 90 | G20: =E20*F20 -> 0 | H20: 0.378 | I20: =E20*H20 -> 34.02 | J20: 0 | K20: =E20*J20 -> 0 | O20: 2 | AA20: 1 | AB20: 1 | AC20: 1 | AZ20: 1 | BA20: =IF(AZ20=1,G20,0) -> 0 | BB20: =IF(AZ20=2,G20,0) -> 0 | BC20: =IF(AZ20=3,G20,0) -> 0 | BD20: =IF(AZ20=4,G20,0) -> 0 | BE20: =IF(AZ20=5,G20,0) -> 0 | CA20: 1 | CB20: 1
C21: Komunikace Pod Stránkou doplnění části plochy po výkopech:180,00/2 | E21: 90 | M21: Komunikace Pod Stránkou doplnění části plochy po výkopech:180,00/2
A22: 7 | B22: 565131111RT3 | C22: Podklad z obal kamen. ACP 16+, š. do 3 m, tl. 5 cm plochy 101-200 m2 | D22: m2 | E22: 180 | G22: =E22*F22 -> 0 | H22: 0.13188 | I22: =E22*H22 -> 23.7384 | J22: 0 | K22: =E22*J22 -> 0 | O22: 2 | AA22: 1 | AB22: 1 | AC22: 1 | AZ22: 1 | BA22: =IF(AZ22=1,G22,0) -> 0 | BB22: =IF(AZ22=2,G22,0) -> 0 | BC22: =IF(AZ22=3,G22,0) -> 0 | BD22: =IF(AZ22=4,G22,0) -> 0 | BE22: =IF(AZ22=5,G22,0) -> 0 | CA22: 1 | CB22: 1
C23: Komunikace Pod Stránkou:180,00 | E23: 180 | M23: Komunikace Pod Stránkou:180,00
A24: 8 | B24: 566201111R00 | C24: Úprava krytu kamenivem drceným do 0,04 m3/m2 | D24: m2 | E24: 90 | G24: =E24*F24 -> 0 | H24: 0.05909 | I24: =E24*H24 -> 5.3181 | J24: 0 | K24: =E24*J24 -> 0 | O24: 2 | AA24: 1 | AB24: 1 | AC24: 1 | AZ24: 1 | BA24: =IF(AZ24=1,G24,0) -> 0 | BB24: =IF(AZ24=2,G24,0) -> 0 | BC24: =IF(AZ24=3,G24,0) -> 0 | BD24: =IF(AZ24=4,G24,0) -> 0 | BE24: =IF(AZ24=5,G24,0) -> 0 | CA24: 1 | CB24: 1
C25: Komunikace Pod Stránkou - na původní štěrkové komunikaci:180,00/2 | E25: 90 | M25: Komunikace Pod Stránkou - na původní štěrkové komunikaci:180,00/2
A26: 9 | B26: 569731111R00 | C26: Zpevnění krajnic kamenivem drceným tl. 10 cm | D26: m2 | E26: 27 | G26: =E26*F26 -> 0 | H26: 0.19695 | I26: =E26*H26 -> 5.31765 | J26: 0 | K26: =E26*J26 -> 0 | O26: 2 | AA26: 1 | AB26: 1 | AC26: 1 | AZ26: 1 | BA26: =IF(AZ26=1,G26,0) -> 0 | BB26: =IF(AZ26=2,G26,0) -> 0 | BC26: =IF(AZ26=3,G26,0) -> 0 | BD26: =IF(AZ26=4,G26,0) -> 0 | BE26: =IF(AZ26=5,G26,0) -> 0 | CA26: 1 | CB26: 1
C27: Krajnice komunikace:90,00*0,15*2 | E27: 27 | M27: Krajnice komunikace:90,00*0,15*2
A28: 10 | B28: 573231111R00 | C28: Postřik živičný spojovací z emulze 0,5-0,7 kg/m2 | D28: m2 | E28: 180 | G28: =E28*F28 -> 0 | H28: 0.00071 | I28: =E28*H28 -> 0.1278 | J28: 0 | K28: =E28*J28 -> 0 | O28: 2 | AA28: 1 | AB28: 1 | AC28: 1 | AZ28: 1 | BA28: =IF(AZ28=1,G28,0) -> 0 | BB28: =IF(AZ28=2,G28,0) -> 0 | BC28: =IF(AZ28=3,G28,0) -> 0 | BD28: =IF(AZ28=4,G28,0) -> 0 | BE28: =IF(AZ28=5,G28,0) -> 0 | CA28: 1 | CB28: 1
C29: Komunikace Pod Stránkou:180,00 | E29: 180 | M29: Komunikace Pod Stránkou:180,00
A30: 11 | B30: 577131111RT3 | C30: Beton asfalt. ACO 11+ obrusný, š. do 3 m, tl. 4 cm plochy 101-200 m2 | D30: m2 | E30: 180 | G30: =E30*F30 -> 0 | H30: 0.10373 | I30: =E30*H30 -> 18.6714 | J30: 0 | K30: =E30*J30 -> 0 | O30: 2 | AA30: 1 | AB30: 1 | AC30: 1 | AZ30: 1 | BA30: =IF(AZ30=1,G30,0) -> 0 | BB30: =IF(AZ30=2,G30,0) -> 0 | BC30: =IF(AZ30=3,G30,0) -> 0 | BD30: =IF(AZ30=4,G30,0) -> 0 | BE30: =IF(AZ30=5,G30,0) -> 0 | CA30: 1 | CB30: 1
C31: Komunikace Pod Stránkou:180,00 | E31: 180 | M31: Komunikace Pod Stránkou:180,00
B32: Celkem za | C32: 5 Komunikace | G32: =SUM(G19:G31) -> 0 | I32: =SUM(I19:I31) -> 87.19335 | K32: =SUM(K19:K31) -> 0 | O32: 4 | BA32: =SUM(BA19:BA31) -> 0 | BB32: =SUM(BB19:BB31) -> 0 | BC32: =SUM(BC19:BC31) -> 0 | BD32: =SUM(BD19:BD31) -> 0 | BE32: =SUM(BE19:BE31) -> 0
A33: Díl: | B33: 91 | C33: Doplňující práce na komunikaci | O33: 1
A34: 12 | B34: 919731122R00 | C34: Zarovnání styčné plochy živičné tl. do 10 cm | D34: m | E34: 2 | G34: =E34*F34 -> 0 | H34: 0 | I34: =E34*H34 -> 0 | J34: 0 | K34: =E34*J34 -> 0 | O34: 2 | AA34: 1 | AB34: 1 | AC34: 1 | AZ34: 1 | BA34: =IF(AZ34=1,G34,0) -> 0 | BB34: =IF(AZ34=2,G34,0) -> 0 | BC34: =IF(AZ34=3,G34,0) -> 0 | BD34: =IF(AZ34=4,G34,0) -> 0 | BE34: =IF(AZ34=5,G34,0) -> 0 | CA34: 1 | CB34: 1
C35: Komunikace Pod Stránkou:2,00 | E35: 2 | M35: Komunikace Pod Stránkou:2,00
A36: 13 | B36: 919735112R00 | C36: Řezání stávajícího živičného krytu tl. 5 - 10 cm | D36: m | E36: 2 | G36: =E36*F36 -> 0 | H36: 0 | I36: =E36*H36 -> 0 | J36: 0 | K36: =E36*J36 -> 0 | O36: 2 | AA36: 1 | AB36: 1 | AC36: 1 | AZ36: 1 | BA36: =IF(AZ36=1,G36,0) -> 0 | BB36: =IF(AZ36=2,G36,0) -> 0 | BC36: =IF(AZ36=3,G36,0) -> 0 | BD36: =IF(AZ36=4,G36,0) -> 0 | BE36: =IF(AZ36=5,G36,0) -> 0 | CA36: 1 | CB36: 1
C37: Komunikace Pod Stránkou:2,00 | E37: 2 | M37: Komunikace Pod Stránkou:2,00
B38: Celkem za | C38: 91 Doplňující práce na komunikaci | G38: =SUM(G33:G37) -> 0 | I38: =SUM(I33:I37) -> 0 | K38: =SUM(K33:K37) -> 0 | O38: 4 | BA38: =SUM(BA33:BA37) -> 0 | BB38: =SUM(BB33:BB37) -> 0 | BC38: =SUM(BC33:BC37) -> 0 | BD38: =SUM(BD33:BD37) -> 0 | BE38: =SUM(BE33:BE37) -> 0
A39: Díl: | B39: 99 | C39: Staveništní přesun hmot | O39: 1
A40: 14 | B40: 998225311R00 | C40: Přesun hmot, oprava komunikací, kryt živič. a bet. | D40: t | E40: 87.19335 | G40: =E40*F40 -> 0 | H40: 0 | I40: =E40*H40 -> 0 | K40: =E40*J40 -> 0 | O40: 2 | AA40: 7 | AB40: 1 | AC40: 2 | AZ40: 1 | BA40: =IF(AZ40=1,G40,0) -> 0 | BB40: =IF(AZ40=2,G40,0) -> 0 | BC40: =IF(AZ40=3,G40,0) -> 0 | BD40: =IF(AZ40=4,G40,0) -> 0 | BE40: =IF(AZ40=5,G40,0) -> 0 | CA40: 7 | CB40: 1
B41: Celkem za | C41: 99 Staveništní přesun hmot | G41: =SUM(G39:G40) -> 0 | I41: =SUM(I39:I40) -> 0 | K41: =SUM(K39:K40) -> 0 | O41: 4 | BA41: =SUM(BA39:BA40) -> 0 | BB41: =SUM(BB39:BB40) -> 0 | BC41: =SUM(BC39:BC40) -> 0 | BD41: =SUM(BD39:BD40) -> 0 | BE41: =SUM(BE39:BE40) -> 0

Sheet 105 3297105 KL
A1: POLOŽKOVÝ ROZPOČET
A2: Rozpočet | C2: 3297/105 | D2: Oprava komunikace "Bukovina u kostela" | F2: JKSO | G2: 822.29
A4: Objekt | F4: SKP
A5: 105 | C5: Oprava komunikace "Bukovina u kostela" | F5: Měrná jednotka | G5: m2
A6: Stavba | F6: Počet jednotek | G6: 400
A7: 3297 | C7: Turnov - Opravy MK a chodníků | F7: Náklady na m.j. | G7: =IF(G6=0,,ROUND((F30+F32)/G6,1)) -> 0
A8: Projektant | F8: Typ rozpočtu
A9: Zpracovatel projektu
A10: Objednatel | C10: Město TURNOV
A11: Dodavatel | C11: . | F11: Zakázkové číslo
A12: Rozpočtoval | F12: Počet listů
A13: ROZPOČTOVÉ NÁKLADY
A14: Základní rozpočtové náklady | D14: Ostatní a vedlejší rozpočtové náklady
B15: HSV celkem | C15: ='105 3297105 Rek'!E13 -> 0 | D15: ='105 3297105 Rek'!A18 -> Zařízení staveniště | G15: ='105 3297105 Rek'!I18 -> 0
A16: Z | B16: PSV celkem | C16: ='105 3297105 Rek'!F13 -> 0 | D16: ='105 3297105 Rek'!A19 -> Provoz investora | G16: ='105 3297105 Rek'!I19 -> 0
A17: R | B17: M práce celkem | C17: ='105 3297105 Rek'!H13 -> 0 | D17: ='105 3297105 Rek'!A20 -> Kompletační činnost (IČD) | G17: ='105 3297105 Rek'!I20 -> 0
A18: N | B18: M dodávky celkem | C18: ='105 3297105 Rek'!G13 -> 0 | D18: ='105 3297105 Rek'!A21 -> DIO | G18: ='105 3297105 Rek'!I21 -> 0
A19: ZRN celkem | C19: =SUM(C15:C18) -> 0
A21: HZS | C21: ='105 3297105 Rek'!I13 -> 0
A22: ZRN+HZS | C22: =C19+C21 -> 0
A23: ZRN+ost.náklady+HZS | C23: =C22+G23 -> 0 | D23: Ostatní náklady celkem | G23: ='105 3297105 Rek'!H22 -> 0
A24: Vypracoval | D24: Za zhotovitele | F24: Za objednatele
A25: Jméno : | D25: Jméno : | F25: Jméno :
A26: Datum : | D26: Datum : | F26: Datum :
A28: Podpis : | D28: Podpis: | F28: Podpis:
A30: Základ pro DPH | C30: 21 | D30: % | F30: =C23-F32 -> 0
A31: DPH | C31: =C30 -> 21 | D31: % | F31: =ROUND(PRODUCT(F30,C31/100),0) -> 0
A32: Základ pro DPH | C32: 0 | D32: % | F32: 0
A33: DPH | C33: =C32 -> 0 | D33: % | F33: =ROUND(PRODUCT(F32,C33/100),0) -> 0
A34: CENA ZA OBJEKT CELKEM | F34: =ROUND(SUM(F30:F33),0) -> 0
A36: Poznámka :

Sheet 105 3297105 Rek
A1: Stavba : | C1: 3297 Turnov - Opravy MK a chodníků | G1: Rozpočet : | H1: 3297/105
A2: Objekt : | C2: 105 Oprava komunikace "Bukovina u kostela" | G2: Oprava komunikace "Bukovina u kostela"
A4: REKAPITULACE STAVEBNÍCH DÍLŮ
B6: Stavební díl | E6: HSV | F6: PSV | G6: Dodávka | H6: Montáž | I6: HZS
A7: ='105 3297105 Pol'!B7 -> 1 | B7: ='105 3297105 Pol'!C7 -> Zemní práce | E7: ='105 3297105 Pol'!BA22 -> 0 | F7: ='105 3297105 Pol'!BB22 -> 0 | G7: ='105 3297105 Pol'!BC22 -> 0 | H7: ='105 3297105 Pol'!BD22 -> 0 | I7: ='105 3297105 Pol'!BE22 -> 0
A8: ='105 3297105 Pol'!B23 -> 5 | B8: ='105 3297105 Pol'!C23 -> Komunikace | E8: ='105 3297105 Pol'!BA34 -> 0 | F8: ='105 3297105 Pol'!BB34 -> 0 | G8: ='105 3297105 Pol'!BC34 -> 0 | H8: ='105 3297105 Pol'!BD34 -> 0 | I8: ='105 3297105 Pol'!BE34 -> 0
A9: ='105 3297105 Pol'!B35 -> 8 | B9: ='105 3297105 Pol'!C35 -> Trubní vedení | E9: ='105 3297105 Pol'!BA37 -> 0 | F9: ='105 3297105 Pol'!BB37 -> 0 | G9: ='105 3297105 Pol'!BC37 -> 0 | H9: ='105 3297105 Pol'!BD37 -> 0 | I9: ='105 3297105 Pol'!BE37 -> 0
A10: ='105 3297105 Pol'!B38 -> 91 | B10: ='105 3297105 Pol'!C38 -> Doplňující práce na komunikaci | E10: ='105 3297105 Pol'!BA43 -> 0 | F10: ='105 3297105 Pol'!BB43 -> 0 | G10: ='105 3297105 Pol'!BC43 -> 0 | H10: ='105 3297105 Pol'!BD43 -> 0 | I10: ='105 3297105 Pol'!BE43 -> 0
A11: ='105 3297105 Pol'!B44 -> 93 | B11: ='105 3297105 Pol'!C44 -> Dokončovací práce inženýrských staveb | E11: ='105 3297105 Pol'!BA47 -> 0 | F11: ='105 3297105 Pol'!BB47 -> 0 | G11: ='105 3297105 Pol'!BC47 -> 0 | H11: ='105 3297105 Pol'!BD47 -> 0 | I11: ='105 3297105 Pol'!BE47 -> 0
A12: ='105 3297105 Pol'!B48 -> 99 | B12: ='105 3297105 Pol'!C48 -> Staveništní přesun hmot | E12: ='105 3297105 Pol'!BA50 -> 0 | F12: ='105 3297105 Pol'!BB50 -> 0 | G12: ='105 3297105 Pol'!BC50 -> 0 | H12: ='105 3297105 Pol'!BD50 -> 0 | I12: ='105 3297105 Pol'!BE50 -> 0
B13: CELKEM OBJEKT | E13: =SUM(E7:E12) -> 0 | F13: =SUM(F7:F12) -> 0 | G13: =SUM(G7:G12) -> 0 | H13: =SUM(H7:H12) -> 0 | I13: =SUM(I7:I12) -> 0
A15: OSTATNÍ A VEDLEJŠÍ ROZPOČTOVÉ NÁKLADY
A17: Název OaVRN | E17: Kč | I17: Kč
A18: Zařízení staveniště | E18: 0 | I18: =E18+F18*G18/100 -> 0 | BA18: 2
A19: Provoz investora | E19: 0 | I19: =E19+F19*G19/100 -> 0 | BA19: 1
A20: Kompletační činnost (IČD) | E20: 0 | I20: =E20+F20*G20/100 -> 0 | BA20: 2
A21: DIO | E21: 0 | I21: =E21+F21*G21/100 -> 0 | BA21: 0
B22: CELKEM OaVRN | H22: =SUM(I18:I21) -> 0

Sheet 105 3297105 Pol
A1: Položkový rozpočet
A3: Stavba : | C3: 3297 Turnov - Opravy MK a chodníků | E3: Rozpočet: | F3: ='105 3297105 Rek'!H1 -> 3297/105
A4: Objekt : | C4: 105 Oprava komunikace "Bukovina u kostela" | E4: ='105 3297105 Rek'!G2 -> Oprava komunikace "Bukovina u kostela"
A6: P.č. | B6: Číslo položky | C6: Název položky | D6: MJ | E6: množství | F6: cena / MJ | G6: celkem (Kč) | H6: Jednotková hmotnost | I6: Celková hmotnost | J6: Jednotková dem.hmot. | K6: Celková dem.hmot.
A7: Díl: | B7: 1 | C7: Zemní práce | O7: 1
A8: 1 | B8: 111301111R00 | C8: Sejmutí drnu tl. do 10 cm, s přemístěním do 50 m | D8: m2 | E8: 36.5 | G8: =E8*F8 -> 0 | H8: 0 | I8: =E8*H8 -> 0 | J8: 0 | K8: =E8*J8 -> 0 | O8: 2 | AA8: 1 | AB8: 1 | AC8: 1 | AZ8: 1 | BA8: =IF(AZ8=1,G8,0) -> 0 | BB8: =IF(AZ8=2,G8,0) -> 0 | BC8: =IF(AZ8=3,G8,0) -> 0 | BD8: =IF(AZ8=4,G8,0) -> 0 | BE8: =IF(AZ8=5,G8,0) -> 0 | CA8: 1 | CB8: 1
C9: Krajnice komunikace:146,00*0,25 | E9: 36.5 | M9: Krajnice komunikace:146,00*0,25
A10: 2 | B10: 113107510R00 | C10: Odstranění podkladu pl. 50 m2,kam.drcené tl.10 cm | D10: m2 | E10: 15 | G10: =E10*F10 -> 0 | H10: 0 | I10: =E10*H10 -> 0 | J10: -0.22 | K10: =E10*J10 -> -3.3 | O10: 2 | AA10: 1 | AB10: 1 | AC10: 1 | AZ10: 1 | BA10: =IF(AZ10=1,G10,0) -> 0 | BB10: =IF(AZ10=2,G10,0) -> 0 | BC10: =IF(AZ10=3,G10,0) -> 0 | BD10: =IF(AZ10=4,G10,0) -> 0 | BE10: =IF(AZ10=5,G10,0) -> 0 | CA10: 1 | CB10: 1
C11: Komunikace Bukovina u kostela:15,00 | E11: 15 | M11: Komunikace Bukovina u kostela:15,00
A12: 3 | B12: 113108305R00 | C12: Odstranění asfaltové vrstvy pl.do 50 m2, tl. 5 cm | D12: m2 | E12: 25 | G12: =E12*F12 -> 0 | H12: 0 | I12: =E12*H12 -> 0 | J12: -0.11 | K12: =E12*J12 -> -2.75 | O12: 2 | AA12: 1 | AB12: 1 | AC12: 1 | AZ12: 1 | BA12: =IF(AZ12=1,G12,0) -> 0 | BB12: =IF(AZ12=2,G12,0) -> 0 | BC12: =IF(AZ12=3,G12,0) -> 0 | BD12: =IF(AZ12=4,G12,0) -> 0 | BE12: =IF(AZ12=5,G12,0) -> 0 | CA12: 1 | CB12: 1
C13: Komunikace Bukovina u kostela:25,00 | E13: 25 | M13: Komunikace Bukovina u kostela:25,00
A14: 4 | B14: 162702111RSZ | C14: Vodorovné přemístění drnu na skládku zhotovitele | D14: m2 | E14: 36.5 | G14: =E14*F14 -> 0 | H14: 0 | I14: =E14*H14 -> 0 | J14: 0 | K14: =E14*J14 -> 0 | O14: 2 | AA14: 1 | AB14: 1 | AC14: 1 | AZ14: 1 | BA14: =IF(AZ14=1,G14,0) -> 0 | BB14: =IF(AZ14=2,G14,0) -> 0 | BC14: =IF(AZ14=3,G14,0) -> 0 | BD14: =IF(AZ14=4,G14,0) -> 0 | BE14: =IF(AZ14=5,G14,0) -> 0 | CA14: 1 | CB14: 1
C15: Krajnice komunikace:146,00*0,25 | E15: 36.5 | M15: Krajnice komunikace:146,00*0,25
A16: 5 | B16: 162702199R00 | C16: Poplatek za skládku drnu | D16: m3 | E16: 3.65 | G16: =E16*F16 -> 0 | H16: 0 | I16: =E16*H16 -> 0 | J16: 0 | K16: =E16*J16 -> 0 | O16: 2 | AA16: 1 | AB16: 1 | AC16: 1 | AZ16: 1 | BA16: =IF(AZ16=1,G16,0) -> 0 | BB16: =IF(AZ16=2,G16,0) -> 0 | BC16: =IF(AZ16=3,G16,0) -> 0 | BD16: =IF(AZ16=4,G16,0) -> 0 | BE16: =IF(AZ16=5,G16,0) -> 0 | CA16: 1 | CB16: 1
C17: Krajnice komunikace:146,00*0,25*0,10 | E17: 3.65 | M17: Krajnice komunikace:146,00*0,25*0,10
A18: 6 | B18: 979082113RSZ | C18: Vodorovná doprava suti po suchu na skládku zhotovitele | D18: t | E18: 6.05 | G18: =E18*F18 -> 0 | H18: 0 | I18: =E18*H18 -> 0 | J18: 0 | K18: =E18*J18 -> 0 | O18: 2 | AA18: 1 | AB18: 1 | AC18: 1 | AZ18: 1 | BA18: =IF(AZ18=1,G18,0) -> 0 | BB18: =IF(AZ18=2,G18,0) -> 0 | BC18: =IF(AZ18=3,G18,0) -> 0 | BD18: =IF(AZ18=4,G18,0) -> 0 | BE18: =IF(AZ18=5,G18,0) -> 0 | CA18: 1 | CB18: 1
A19: 7 | B19: 979990002RRŠ | C19: Poplatek za skládku stavební suti štěrky z komunikací | D19: t | E19: 3.3 | G19: =E19*F19 -> 0 | H19: 0 | I19: =E19*H19 -> 0 | J19: 0 | K19: =E19*J19 -> 0 | O19: 2 | AA19: 1 | AB19: 1 | AC19: 1 | AZ19: 1 | BA19: =IF(AZ19=1,G19,0) -> 0 | BB19: =IF(AZ19=2,G19,0) -> 0 | BC19: =IF(AZ19=3,G19,0) -> 0 | BD19: =IF(AZ19=4,G19,0) -> 0 | BE19: =IF(AZ19=5,G19,0) -> 0 | CA19: 1 | CB19: 1
A20: 8 | B20: 979990112RRA | C20: Poplatek za skládku suti - obalované kam. - asfalt | D20: t | E20: 2.75 | G20: =E20*F20 -> 0 | H20: 0 | I20: =E20*H20 -> 0 | J20: 0 | K20: =E20*J20 -> 0 | O20: 2 | AA20: 1 | AB20: 1 | AC20: 1 | AZ20: 1 | BA20: =IF(AZ20=1,G20,0) -> 0 | BB20: =IF(AZ20=2,G20,0) -> 0 | BC20: =IF(AZ20=3,G20,0) -> 0 | BD20: =IF(AZ20=4,G20,0) -> 0 | BE20: =IF(AZ20=5,G20,0) -> 0 | CA20: 1 | CB20: 1
C21: Položka je určena pro suť o velikosti kusu do 30x30 cm (technologický materiál určený k recyklaci). | L21: Položka je určena pro suť o velikosti kusu do 30x30 cm (technologický materiál určený k recyklaci). | O21: 3
B22: Celkem za | C22: 1 Zemní práce | G22: =SUM(G7:G21) -> 0 | I22: =SUM(I7:I21) -> 0 | K22: =SUM(K7:K21) -> -6.05 | O22: 4 | BA22: =SUM(BA7:BA21) -> 0 | BB22: =SUM(BB7:BB21) -> 0 | BC22: =SUM(BC7:BC21) -> 0 | BD22: =SUM(BD7:BD21) -> 0 | BE22: =SUM(BE7:BE21) -> 0
A23: Díl: | B23: 5 | C23: Komunikace | O23: 1
A24: 9 | B24: 566501111R00 | C24: Úprava krytu kamenivem drceným do 0,10 m3/m2 | D24: m2 | E24: 40 | G24: =E24*F24 -> 0 | H24: 0.17726 | I24: =E24*H24 -> 7.0904 | J24: 0 | K24: =E24*J24 -> 0 | O24: 2 | AA24: 1 | AB24: 1 | AC24: 1 | AZ24: 1 | BA24: =IF(AZ24=1,G24,0) -> 0 | BB24: =IF(AZ24=2,G24,0) -> 0 | BC24: =IF(AZ24=3,G24,0) -> 0 | BD24: =IF(AZ24=4,G24,0) -> 0 | BE24: =IF(AZ24=5,G24,0) -> 0 | CA24: 1 | CB24: 1
C25: Komunikace Bukovina u kostela:40,00 | E25: 40 | M25: Komunikace Bukovina u kostela:40,00
A26: 10 | B26: 569731111R00 | C26: Zpevnění krajnic kamenivem drceným tl. 10 cm | D26: m2 | E26: 36.5 | G26: =E26*F26 -> 0 | H26: 0.19695 | I26: =E26*H26 -> 7.188675 | J26: 0 | K26: =E26*J26 -> 0 | O26: 2 | AA26: 1 | AB26: 1 | AC26: 1 | AZ26: 1 | BA26: =IF(AZ26=1,G26,0) -> 0 | BB26: =IF(AZ26=2,G26,0) -> 0 | BC26: =IF(AZ26=3,G26,0) -> 0 | BD26: =IF(AZ26=4,G26,0) -> 0 | BE26: =IF(AZ26=5,G26,0) -> 0 | CA26: 1 | CB26: 1
C27: Krajnice komunikace:146,00*0,25 | E27: 36.5 | M27: Krajnice komunikace:146,00*0,25
A28: 11 | B28: 572713112R00 | C28: Vyrovnání povrchu krytů kamen. obaleným asfaltem | D28: t | E28: 34 | G28: =E28*F28 -> 0 | H28: 1 | I28: =E28*H28 -> 34 | J28: 0 | K28: =E28*J28 -> 0 | O28: 2 | AA28: 1 | AB28: 1 | AC28: 1 | AZ28: 1 | BA28: =IF(AZ28=1,G28,0) -> 0 | BB28: =IF(AZ28=2,G28,0) -> 0 | BC28: =IF(AZ28=3,G28,0) -> 0 | BD28: =IF(AZ28=4,G28,0) -> 0 | BE28: =IF(AZ28=5,G28,0) -> 0 | CA28: 1 | CB28: 1
C29: Komunikace Bukovina u kostela:400,00*(0,02+0,04)/2*2,5+40,00*0,04*2,5 | E29: 34 | M29: Komunikace Bukovina u kostela:400,00*(0,02+0,04)/2*2,5+40,00*0,04*2,5
A30: 12 | B30: 573231111R00 | C30: Postřik živičný spojovací z emulze 0,5-0,7 kg/m2 | D30: m2 | E30: 400 | G30: =E30*F30 -> 0 | H30: 0.00071 | I30: =E30*H30 -> 0.284 | J30: 0 | K30: =E30*J30 -> 0 | O30: 2 | AA30: 1 | AB30: 1 | AC30: 1 | AZ30: 1 | BA30: =IF(AZ30=1,G30,0) -> 0 | BB30: =IF(AZ30=2,G30,0) -> 0 | BC30: =IF(AZ30=3,G30,0) -> 0 | BD30: =IF(AZ30=4,G30,0) -> 0 | BE30: =IF(AZ30=5,G30,0) -> 0 | CA30: 1 | CB30: 1
C31: Komunikace Bukovina u kostela:400,00 | E31: 400 | M31: Komunikace Bukovina u kostela:400,00
A32: 13 | B32: 577141312RT2 | C32: Beton asfalt. ACO 8 CH,ACO 11,ACO 16, do 3 m, 5 cm plochy 201-1000 m2 | D32: m2 | E32: 400 | G32: =E32*F32 -> 0 | H32: 0.12715 | I32: =E32*H32 -> 50.86 | J32: 0 | K32: =E32*J32 -> 0 | O32: 2 | AA32: 1 | AB32: 1 | AC32: 1 | AZ32: 1 | BA32: =IF(AZ32=1,G32,0) -> 0 | BB32: =IF(AZ32=2,G32,0) -> 0 | BC32: =IF(AZ32=3,G32,0) -> 0 | BD32: =IF(AZ32=4,G32,0) -> 0 | BE32: =IF(AZ32=5,G32,0) -> 0 | CA32: 1 | CB32: 1
C33: Komunikace Bukovina u kostela:400,00 | E33: 400 | M33: Komunikace Bukovina u kostela:400,00
B34: Celkem za | C34: 5 Komunikace | G34: =SUM(G23:G33) -> 0 | I34: =SUM(I23:I33) -> 99.423075 | K34: =SUM(K23:K33) -> 0 | O34: 4 | BA34: =SUM(BA23:BA33) -> 0 | BB34: =SUM(BB23:BB33) -> 0 | BC34: =SUM(BC23:BC33) -> 0 | BD34: =SUM(BD23:BD33) -> 0 | BE34: =SUM(BE23:BE33) -> 0
A35: Díl: | B35: 8 | C35: Trubní vedení | O35: 1
A36: 14 | B36: 899431111R00 | C36: Výšková úprava do 20 cm, zvýšení krytu šoupěte | D36: kus | E36: 3 | G36: =E36*F36 -> 0 | H36: 0.3159 | I36: =E36*H36 -> 0.9477 | J36: 0 | K36: =E36*J36 -> 0 | O36: 2 | AA36: 1 | AB36: 1 | AC36: 1 | AZ36: 1 | BA36: =IF(AZ36=1,G36,0) -> 0 | BB36: =IF(AZ36=2,G36,0) -> 0 | BC36: =IF(AZ36=3,G36,0) -> 0 | BD36: =IF(AZ36=4,G36,0) -> 0 | BE36: =IF(AZ36=5,G36,0) -> 0 | CA36: 1 | CB36: 1
B37: Celkem za | C37: 8 Trubní vedení | G37: =SUM(G35:G36) -> 0 | I37: =SUM(I35:I36) -> 0.9477 | K37: =SUM(K35:K36) -> 0 | O37: 4 | BA37: =SUM(BA35:BA36) -> 0 | BB37: =SUM(BB35:BB36) -> 0 | BC37: =SUM(BC35:BC36) -> 0 | BD37: =SUM(BD35:BD36) -> 0 | BE37: =SUM(BE35:BE36) -> 0
A38: Díl: | B38: 91 | C38: Doplňující práce na komunikaci | O38: 1
A39: 15 | B39: 919731122R00 | C39: Zarovnání styčné plochy živičné tl. do 10 cm | D39: m | E39: 15 | G39: =E39*F39 -> 0 | H39: 0 | I39: =E39*H39 -> 0 | J39: 0 | K39: =E39*J39 -> 0 | O39: 2 | AA39: 1 | AB39: 1 | AC39: 1 | AZ39: 1 | BA39: =IF(AZ39=1,G39,0) -> 0 | BB39: =IF(AZ39=2,G39,0) -> 0 | BC39: =IF(AZ39=3,G39,0) -> 0 | BD39: =IF(AZ39=4,G39,0) -> 0 | BE39: =IF(AZ39=5,G39,0) -> 0 | CA39: 1 | CB39: 1
C40: Komunikace Bukovina u kostela:12,00+3,00 | E40: 15 | M40: Komunikace Bukovina u kostela:12,00+3,00
A41: 16 | B41: 919735112R00 | C41: Řezání stávajícího živičného krytu tl. 5 - 10 cm | D41: m | E41: 15 | G41: =E41*F41 -> 0 | H41: 0 | I41: =E41*H41 -> 0 | J41: 0 | K41: =E41*J41 -> 0 | O41: 2 | AA41: 1 | AB41: 1 | AC41: 1 | AZ41: 1 | BA41: =IF(AZ41=1,G41,0) -> 0 | BB41: =IF(AZ41=2,G41,0) -> 0 | BC41: =IF(AZ41=3,G41,0) -> 0 | BD41: =IF(AZ41=4,G41,0) -> 0 | BE41: =IF(AZ41=5,G41,0) -> 0 | CA41: 1 | CB41: 1
C42: Komunikace Bukovina u kostela:12,00+3,00 | E42: 15 | M42: Komunikace Bukovina u kostela:12,00+3,00
B43: Celkem za | C43: 91 Doplňující práce na komunikaci | G43: =SUM(G38:G42) -> 0 | I43: =SUM(I38:I42) -> 0 | K43: =SUM(K38:K42) -> 0 | O43: 4 | BA43: =SUM(BA38:BA42) -> 0 | BB43: =SUM(BB38:BB42) -> 0 | BC43: =SUM(BC38:BC42) -> 0 | BD43: =SUM(BD38:BD42) -> 0 | BE43: =SUM(BE38:BE42) -> 0
A44: Díl: | B44: 93 | C44: Dokončovací práce inženýrských staveb | O44: 1
A45: 17 | B45: 938909111R00 | C45: Odstranění nánosu s povrchu podkladu štěrkového | D45: m2 | E45: 400 | G45: =E45*F45 -> 0 | H45: 0 | I45: =E45*H45 -> 0 | J45: 0 | K45: =E45*J45 -> 0 | O45: 2 | AA45: 1 | AB45: 1 | AC45: 1 | AZ45: 1 | BA45: =IF(AZ45=1,G45,0) -> 0 | BB45: =IF(AZ45=2,G45,0) -> 0 | BC45: =IF(AZ45=3,G45,0) -> 0 | BD45: =IF(AZ45=4,G45,0) -> 0 | BE45: =IF(AZ45=5,G45,0) -> 0 | CA45: 1 | CB45: 1
C46: Komunikace Bukovina u kostela:400,00 | E46: 400 | M46: Komunikace Bukovina u kostela:400,00
B47: Celkem za | C47: 93 Dokončovací práce inženýrských staveb | G47: =SUM(G44:G46) -> 0 | I47: =SUM(I44:I46) -> 0 | K47: =SUM(K44:K46) -> 0 | O47: 4 | BA47: =SUM(BA44:BA46) -> 0 | BB47: =SUM(BB44:BB46) -> 0 | BC47: =SUM(BC44:BC46) -> 0 | BD47: =SUM(BD44:BD46) -> 0 | BE47: =SUM(BE44:BE46) -> 0
A48: Díl: | B48: 99 | C48: Staveništní přesun hmot | O48: 1
A49: 18 | B49: 998225311R00 | C49: Přesun hmot, oprava komunikací, kryt živič. a bet. | D49: t | E49: 100.370775 | G49: =E49*F49 -> 0 | H49: 0 | I49: =E49*H49 -> 0 | K49: =E49*J49 -> 0 | O49: 2 | AA49: 7 | AB49: 1 | AC49: 2 | AZ49: 1 | BA49: =IF(AZ49=1,G49,0) -> 0 | BB49: =IF(AZ49=2,G49,0) -> 0 | BC49: =IF(AZ49=3,G49,0) -> 0 | BD49: =IF(AZ49=4,G49,0) -> 0 | BE49: =IF(AZ49=5,G49,0) -> 0 | CA49: 7 | CB49: 1
B50: Celkem za | C50: 99 Staveništní přesun hmot | G50: =SUM(G48:G49) -> 0 | I50: =SUM(I48:I49) -> 0 | K50: =SUM(K48:K49) -> 0 | O50: 4 | BA50: =SUM(BA48:BA49) -> 0 | BB50: =SUM(BB48:BB49) -> 0 | BC50: =SUM(BC48:BC49) -> 0 | BD50: =SUM(BD48:BD49) -> 0 | BE50: =SUM(BE48:BE49) -> 0

Sheet 106 3297106 KL
A1: POLOŽKOVÝ ROZPOČET
A2: Rozpočet | C2: 3297/106 | D2: Oprava chodníků v ul. Žizkova u čp. 2030 a 2031 | F2: JKSO | G2: 822.24
A4: Objekt | F4: SKP
A5: 106 | C5: Oprava chodníků v ul. Žizkova u čp. 2030 a 2031 | F5: Měrná jednotka | G5: m2
A6: Stavba | F6: Počet jednotek | G6: 420
A7: 3297 | C7: Turnov - Opravy MK a chodníků | F7: Náklady na m.j. | G7: =IF(G6=0,,ROUND((F30+F32)/G6,1)) -> 0
A8: Projektant | F8: Typ rozpočtu
A9: Zpracovatel projektu
A10: Objednatel | C10: Město TURNOV
A11: Dodavatel | C11: . | F11: Zakázkové číslo
A12: Rozpočtoval | F12: Počet listů
A13: ROZPOČTOVÉ NÁKLADY
A14: Základní rozpočtové náklady | D14: Ostatní rozpočtové náklady
B15: HSV celkem | C15: ='106 3297106 Rek'!E12 -> 0 | D15: ='106 3297106 Rek'!A17 -> Zařízení staveniště | G15: ='106 3297106 Rek'!I17 -> 0
A16: Z | B16: PSV celkem | C16: ='106 3297106 Rek'!F12 -> 0 | D16: ='106 3297106 Rek'!A18 -> Provoz investora | G16: ='106 3297106 Rek'!I18 -> 0
A17: R | B17: M práce celkem | C17: ='106 3297106 Rek'!H12 -> 0 | D17: ='106 3297106 Rek'!A19 -> Kompletační činnost (IČD) | G17: ='106 3297106 Rek'!I19 -> 0
A18: N | B18: M dodávky celkem | C18: ='106 3297106 Rek'!G12 -> 0 | D18: ='106 3297106 Rek'!A20 -> Vytýčení stavby a podz. inženýrských sítí | G18: ='106 3297106 Rek'!I20 -> 0
A19: ZRN celkem | C19: =SUM(C15:C18) -> 0 | D19: ='106 3297106 Rek'!A21 -> Dokumentace skutečného provedení | G19: ='106 3297106 Rek'!I21 -> 0
D20: ='106 3297106 Rek'!A22 -> Geodetické zaměření stavby | G20: ='106 3297106 Rek'!I22 -> 0
A21: HZS | C21: ='106 3297106 Rek'!I12 -> 0 | D21: ='106 3297106 Rek'!A23 -> DIO | G21: ='106 3297106 Rek'!I23 -> 0
A22: ZRN+HZS | C22: =C19+C21 -> 0
A23: ZRN+ost.náklady+HZS | C23: =C22+G23 -> 0 | D23: Ostatní náklady celkem | G23: ='106 3297106 Rek'!H24 -> 0
A24: Vypracoval | D24: Za zhotovitele | F24: Za objednatele
A25: Jméno : | D25: Jméno : | F25: Jméno :
A26: Datum : | D26: Datum : | F26: Datum :
A28: Podpis : | D28: Podpis: | F28: Podpis:
A30: Základ pro DPH | C30: 21 | D30: % | F30: =C23-F32 -> 0
A31: DPH | C31: =C30 -> 21 | D31: % | F31: =ROUND(PRODUCT(F30,C31/100),0) -> 0
A32: Základ pro DPH | C32: 0 | D32: % | F32: 0
A33: DPH | C33: =C32 -> 0 | D33: % | F33: =ROUND(PRODUCT(F32,C33/100),0) -> 0
A34: CENA ZA OBJEKT CELKEM | F34: =ROUND(SUM(F30:F33),0) -> 0
A36: Poznámka :

Sheet 106 3297106 Rek
A1: Stavba : | C1: 3297 Turnov - Opravy MK a chodníků | G1: Rozpočet : | H1: 3297/106
A2: Objekt : | C2: 106 Oprava chodníků v ul. Žizkova u čp. 2030 a 2031 | G2: Oprava chodníků v ul. Žizkova u čp. 2030 a 2031
A4: REKAPITULACE STAVEBNÍCH DÍLŮ
B6: Stavební díl | E6: HSV | F6: PSV | G6: Dodávka | H6: Montáž | I6: HZS
A7: ='106 3297106 Pol'!B7 -> 1 | B7: ='106 3297106 Pol'!C7 -> Zemní práce | E7: ='106 3297106 Pol'!BA47 -> 0 | F7: ='106 3297106 Pol'!BB47 -> 0 | G7: ='106 3297106 Pol'!BC47 -> 0 | H7: ='106 3297106 Pol'!BD47 -> 0 | I7: ='106 3297106 Pol'!BE47 -> 0
A8: ='106 3297106 Pol'!B48 -> 5 | B8: ='106 3297106 Pol'!C48 -> Komunikace | E8: ='106 3297106 Pol'!BA90 -> 0 | F8: ='106 3297106 Pol'!BB90 -> 0 | G8: ='106 3297106 Pol'!BC90 -> 0 | H8: ='106 3297106 Pol'!BD90 -> 0 | I8: ='106 3297106 Pol'!BE90 -> 0
A9: ='106 3297106 Pol'!B91 -> 8 | B9: ='106 3297106 Pol'!C91 -> Trubní vedení | E9: ='106 3297106 Pol'!BA95 -> 0 | F9: ='106 3297106 Pol'!BB95 -> 0 | G9: ='106 3297106 Pol'!BC95 -> 0 | H9: ='106 3297106 Pol'!BD95 -> 0 | I9: ='106 3297106 Pol'!BE95 -> 0
A10: ='106 3297106 Pol'!B96 -> 91 | B10: ='106 3297106 Pol'!C96 -> Doplňující práce na komunikaci | E10: ='106 3297106 Pol'!BA115 -> 0 | F10: ='106 3297106 Pol'!BB115 -> 0 | G10: ='106 3297106 Pol'!BC115 -> 0 | H10: ='106 3297106 Pol'!BD115 -> 0 | I10: ='106 3297106 Pol'!BE115 -> 0
A11: ='106 3297106 Pol'!B116 -> 99 | B11: ='106 3297106 Pol'!C116 -> Staveništní přesun hmot | E11: ='106 3297106 Pol'!BA118 -> 0 | F11: ='106 3297106 Pol'!BB118 -> 0 | G11: ='106 3297106 Pol'!BC118 -> 0 | H11: ='106 3297106 Pol'!BD118 -> 0 | I11: ='106 3297106 Pol'!BE118 -> 0
B12: CELKEM OBJEKT | E12: =SUM(E7:E11) -> 0 | F12: =SUM(F7:F11) -> 0 | G12: =SUM(G7:G11) -> 0 | H12: =SUM(H7:H11) -> 0 | I12: =SUM(I7:I11) -> 0
A14: VEDLEJŠÍ ROZPOČTOVÉ NÁKLADY
A16: Název VRN | E16: Kč | I16: Kč
A17: Zařízení staveniště | E17: 0 | I17: =E17+F17*G17/100 -> 0 | BA17: 2
A18: Provoz investora | E18: 0 | I18: 0 | BA18: 1
A19: Kompletační činnost (IČD) | E19: 0 | I19: 0 | BA19: 2
A20: Vytýčení stavby a podz. inženýrských sítí | E20: 0 | I20: 0 | BA20: 0
A21: Dokumentace skutečného provedení | E21: 0 | I21: 0 | BA21: 0
A22: Geodetické zaměření stavby | E22: 0 | I22: 0 | BA22: 0
A23: DIO | E23: 0 | I23: 0 | BA23: 0
B24: CELKEM VRN | H24: =SUM(I17:I23) -> 0

Sheet 106 3297106 Pol
A1: Položkový rozpočet
A3: Stavba : | C3: 3297 Turnov - Opravy MK a chodníků | E3: Rozpočet: | F3: ='106 3297106 Rek'!H1 -> 3297/106
A4: Objekt : | C4: 106 Oprava chodníků v ul. Žizkova u čp. 2030 a 2031 | E4: ='106 3297106 Rek'!G2 -> Oprava chodníků v ul. Žizkova u čp. 2030 a 2031
A6: P.č. | B6: Číslo položky | C6: Název položky | D6: MJ | E6: množství | F6: cena / MJ | G6: celkem (Kč) | H6: Jednotková hmotnost | I6: Celková hmotnost | J6: Jednotková dem.hmot. | K6: Celková dem.hmot.
A7: Díl: | B7: 1 | C7: Zemní práce | O7: 1
A8: 1 | B8: 113106121R00 | C8: Rozebrání dlažeb z betonových dlaždic na sucho | D8: m2 | E8: 44 | G8: =E8*F8 -> 0 | H8: 0 | I8: =E8*H8 -> 0 | J8: -0.138 | K8: =E8*J8 -> -6.072 | O8: 2 | AA8: 1 | AB8: 1 | AC8: 1 | AZ8: 1 | BA8: =IF(AZ8=1,G8,0) -> 0 | BB8: =IF(AZ8=2,G8,0) -> 0 | BC8: =IF(AZ8=3,G8,0) -> 0 | BD8: =IF(AZ8=4,G8,0) -> 0 | BE8: =IF(AZ8=5,G8,0) -> 0 | CA8: 1 | CB8: 1
C9: Procha pro kontejnery - stávající zatravňpvací dlažba:44,00 | E9: 44 | M9: Procha pro kontejnery - stávající zatravňpvací dlažba:44,00
A10: 2 | B10: 113107410R00 | C10: Odstranění podkladu nad 50 m2,kam.těžené tl.10 cm | D10: m2 | E10: 40 | G10: =E10*F10 -> 0 | H10: 0 | I10: =E10*H10 -> 0 | J10: -0.22 | K10: =E10*J10 -> -8.8 | O10: 2 | AA10: 1 | AB10: 1 | AC10: 1 | AZ10: 1 | BA10: =IF(AZ10=1,G10,0) -> 0 | BB10: =IF(AZ10=2,G10,0) -> 0 | BC10: =IF(AZ10=3,G10,0) -> 0 | BD10: =IF(AZ10=4,G10,0) -> 0 | BE10: =IF(AZ10=5,G10,0) -> 0 | CA10: 1 | CB10: 1
C11: Chodník podél čp.2031:40,00 | E11: 40 | M11: Chodník podél čp.2031:40,00
A12: 3 | B12: 113107413R00 | C12: Odstranění podkladu nad 50 m2,kam.těžené tl.13 cm | D12: m2 | E12: 307 | G12: =E12*F12 -> 0 | H12: 0 | I12: =E12*H12 -> 0 | J12: -0.286 | K12: =E12*J12 -> -87.802 | O12: 2 | AA12: 1 | AB12: 1 | AC12: 1 | AZ12: 1 | BA12: =IF(AZ12=1,G12,0) -> 0 | BB12: =IF(AZ12=2,G12,0) -> 0 | BC12: =IF(AZ12=3,G12,0) -> 0 | BD12: =IF(AZ12=4,G12,0) -> 0 | BE12: =IF(AZ12=5,G12,0) -> 0 | CA12: 1 | CB12: 1
C13: Chodník před čp.2030 a 2031 včetně bočního chodníku podél čp.2030:307,00 | E13: 307 | M13: Chodník před čp.2030 a 2031 včetně bočního chodníku podél čp.2030:307,00
A14: 4 | B14: 113107415R00 | C14: Odstranění podkladu nad 50 m2,kam.těžené tl.15 cm | D14: m2 | E14: 57 | G14: =E14*F14 -> 0 | H14: 0 | I14: =E14*H14 -> 0 | J14: -0.33 | K14: =E14*J14 -> -18.81 | O14: 2 | AA14: 1 | AB14: 1 | AC14: 1 | AZ14: 1 | BA14: =IF(AZ14=1,G14,0) -> 0 | BB14: =IF(AZ14=2,G14,0) -> 0 | BC14: =IF(AZ14=3,G14,0) -> 0 | BD14: =IF(AZ14=4,G14,0) -> 0 | BE14: =IF(AZ14=5,G14,0) -> 0 | CA14: 1 | CB14: 1
C15: Přístupový chodník k čp.2031:15,75 | E15: 15.75 | M15: Přístupový chodník k čp.2031:15,75
C16: Přístupový chodník k čp.2030:17,25 | E16: 17.25 | M16: Přístupový chodník k čp.2030:17,25
C17: Pro osazení nových silničních obrubníků podél komunikace:48,00*0,50 | E17: 24 | M17: Pro osazení nových silničních obrubníků podél komunikace:48,00*0,50
A18: 5 | B18: 113107610R00 | C18: Odstranění podkladu nad 50 m2,kam.drcené tl.10 cm | D18: m2 | E18: 44 | G18: =E18*F18 -> 0 | H18: 0 | I18: =E18*H18 -> 0 | J18: -0.22 | K18: =E18*J18 -> -9.68 | O18: 2 | AA18: 1 | AB18: 1 | AC18: 1 | AZ18: 1 | BA18: =IF(AZ18=1,G18,0) -> 0 | BB18: =IF(AZ18=2,G18,0) -> 0 | BC18: =IF(AZ18=3,G18,0) -> 0 | BD18: =IF(AZ18=4,G18,0) -> 0 | BE18: =IF(AZ18=5,G18,0) -> 0 | CA18: 1 | CB18: 1
C19: Plocha pro kontejnery:44,00 | E19: 44 | M19: Plocha pro kontejnery:44,00
A20: 6 | B20: 113108315R00 | C20: Odstranění asfaltové vrstvy pl. do 50 m2, tl.15 cm | D20: m2 | E20: 24 | G20: =E20*F20 -> 0 | H20: 0 | I20: =E20*H20 -> 0 | J20: -0.33 | K20: =E20*J20 -> -7.92 | O20: 2 | AA20: 1 | AB20: 1 | AC20: 1 | AZ20: 1 | BA20: =IF(AZ20=1,G20,0) -> 0 | BB20: =IF(AZ20=2,G20,0) -> 0 | BC20: =IF(AZ20=3,G20,0) -> 0 | BD20: =IF(AZ20=4,G20,0) -> 0 | BE20: =IF(AZ20=5,G20,0) -> 0 | CA20: 1 | CB20: 1
C21: Podél části sávajících obrubníků:48,00*0,50 | E21: 24 | M21: Podél části sávajících obrubníků:48,00*0,50
A22: 7 | B22: 113108405R00 | C22: Odstranění asfaltové vrstvy pl.nad 50 m2, tl. 5 cm | D22: m2 | E22: 73 | G22: =E22*F22 -> 0 | H22: 0 | I22: =E22*H22 -> 0 | J22: -0.11 | K22: =E22*J22 -> -8.03 | O22: 2 | AA22: 1 | AB22: 1 | AC22: 1 | AZ22: 1 | BA22: =IF(AZ22=1,G22,0) -> 0 | BB22: =IF(AZ22=2,G22,0) -> 0 | BC22: =IF(AZ22=3,G22,0) -> 0 | BD22: =IF(AZ22=4,G22,0) -> 0 | BE22: =IF(AZ22=5,G22,0) -> 0 | CA22: 1 | CB22: 1
C23: Chodník podél čp.2031:40,00 | E23: 40 | M23: Chodník podél čp.2031:40,00
C24: Přístupový chodník k čp.2031:15,75 | E24: 15.75 | M24: Přístupový chodník k čp.2031:15,75
C25: Přístupový chodník k čp.2030:17,25 | E25: 17.25 | M25: Přístupový chodník k čp.2030:17,25
A26: 8 | B26: 113108407R00 | C26: Odstranění asfaltové vrstvy pl.nad 50 m2, tl. 7 cm | D26: m2 | E26: 307 | G26: =E26*F26 -> 0 | H26: 0 | I26: =E26*H26 -> 0 | J26: -0.154 | K26: =E26*J26 -> -47.278 | O26: 2 | AA26: 1 | AB26: 1 | AC26: 1 | AZ26: 1 | BA26: =IF(AZ26=1,G26,0) -> 0 | BB26: =IF(AZ26=2,G26,0) -> 0 | BC26: =IF(AZ26=3,G26,0) -> 0 | BD26: =IF(AZ26=4,G26,0) -> 0 | BE26: =IF(AZ26=5,G26,0) -> 0 | CA26: 1 | CB26: 1
C27: Chodník před čp.2030 a 2031 včetně bočního chodníku podél čp.2030:307,00 | E27: 307 | M27: Chodník před čp.2030 a 2031 včetně bočního chodníku podél čp.2030:307,00
A28: 9 | B28: 113202111R00 | C28: Vytrhání obrub obrubníků silničních | D28: m | E28: 93 | G28: =E28*F28 -> 0 | H28: 0 | I28: =E28*H28 -> 0 | J28: -0.27 | K28: =E28*J28 -> -25.11 | O28: 2 | AA28: 1 | AB28: 1 | AC28: 1 | AZ28: 1 | BA28: =IF(AZ28=1,G28,0) -> 0 | BB28: =IF(AZ28=2,G28,0) -> 0 | BC28: =IF(AZ28=3,G28,0) -> 0 | BD28: =IF(AZ28=4,G28,0) -> 0 | BE28: =IF(AZ28=5,G28,0) -> 0 | CA28: 1 | CB28: 1
C29: Stávající silniční obruby:93,00 | E29: 93 | M29: Stávající silniční obruby:93,00
A30: 10 | B30: 113204111R00 | C30: Vytrhání obrubníků zahradních | D30: m | E30: 115 | G30: =E30*F30 -> 0 | H30: 0 | I30: =E30*H30 -> 0 | J30: -0.125 | K30: =E30*J30 -> -14.375 | O30: 2 | AA30: 1 | AB30: 1 | AC30: 1 | AZ30: 1 | BA30: =IF(AZ30=1,G30,0) -> 0 | BB30: =IF(AZ30=2,G30,0) -> 0 | BC30: =IF(AZ30=3,G30,0) -> 0 | BD30: =IF(AZ30=4,G30,0) -> 0 | BE30: =IF(AZ30=5,G30,0) -> 0 | CA30: 1 | CB30: 1
C31: Stávající záhonové obruby:115,00 | E31: 115 | M31: Stávající záhonové obruby:115,00
A32: 11 | B32: 139601101R00 | C32: Ruční výkop jam, rýh a šachet v hornině tř. 1 - 2 | D32: m3 | E32: 6.9 | G32: =E32*F32 -> 0 | H32: 0 | I32: =E32*H32 -> 0 | J32: 0 | K32: =E32*J32 -> 0 | O32: 2 | AA32: 1 | AB32: 1 | AC32: 1 | AZ32: 1 | BA32: =IF(AZ32=1,G32,0) -> 0 | BB32: =IF(AZ32=2,G32,0) -> 0 | BC32: =IF(AZ32=3,G32,0) -> 0 | BD32: =IF(AZ32=4,G32,0) -> 0 | BE32: =IF(AZ32=5,G32,0) -> 0 | CA32: 1 | CB32: 1
C33: Pro osazení nových záhonových obrubníků:115,00*0,20*0,30 | E33: 6.9 | M33: Pro osazení nových záhonových obrubníků:115,00*0,20*0,30
A34: 12 | B34: 174101102R00 | C34: Zásyp ruční se zhutněním | D34: m3 | E34: 6.9 | G34: =E34*F34 -> 0 | H34: 0 | I34: =E34*H34 -> 0 | J34: 0 | K34: =E34*J34 -> 0 | O34: 2 | AA34: 1 | AB34: 1 | AC34: 1 | AZ34: 1 | BA34: =IF(AZ34=1,G34,0) -> 0 | BB34: =IF(AZ34=2,G34,0) -> 0 | BC34: =IF(AZ34=3,G34,0) -> 0 | BD34: =IF(AZ34=4,G34,0) -> 0 | BE34: =IF(AZ34=5,G34,0) -> 0 | CA34: 1 | CB34: 1
C35: Po osazení nových záhonových obrubníků:115,00*0,20*0,30 | E35: 6.9 | M35: Po osazení nových záhonových obrubníků:115,00*0,20*0,30
A36: 13 | B36: 181101102R00 | C36: Úprava pláně v zářezech v hor. 1-4, se zhutněním | D36: m2 | E36: 477.25 | G36: =E36*F36 -> 0 | H36: 0 | I36: =E36*H36 -> 0 | J36: 0 | K36: =E36*J36 -> 0 | O36: 2 | AA36: 1 | AB36: 1 | AC36: 1 | AZ36: 1 | BA36: =IF(AZ36=1,G36,0) -> 0 | BB36: =IF(AZ36=2,G36,0) -> 0 | BC36: =IF(AZ36=3,G36,0) -> 0 | BD36: =IF(AZ36=4,G36,0) -> 0 | BE36: =IF(AZ36=5,G36,0) -> 0 | CA36: 1 | CB36: 1
C37: Asfaltové chodníky:40,00 | E37: 40 | M37: Asfaltové chodníky:40,00
C38: Dlážděné chodníky:336,00 | E38: 336 | M38: Dlážděné chodníky:336,00
C39: Plocha pro kontejnery:44,00 | E39: 44 | M39: Plocha pro kontejnery:44,00
C40: Plocha pod záhonové obrubníky:115,00*0,25 | E40: 28.75 | M40: Plocha pod záhonové obrubníky:115,00*0,25
C41: Plocha pod silniční obrubníky:95,00*0,30 | E41: 28.5 | M41: Plocha pod silniční obrubníky:95,00*0,30
A42: 14 | B42: 979082113RSZ | C42: Vodorovná doprava suti po suchu na skládku zhotovitele | D42: t | E42: 233.877 | G42: =E42*F42 -> 0 | H42: 0 | I42: =E42*H42 -> 0 | J42: 0 | K42: =E42*J42 -> 0 | O42: 2 | AA42: 1 | AB42: 1 | AC42: 1 | AZ42: 1 | BA42: =IF(AZ42=1,G42,0) -> 0 | BB42: =IF(AZ42=2,G42,0) -> 0 | BC42: =IF(AZ42=3,G42,0) -> 0 | BD42: =IF(AZ42=4,G42,0) -> 0 | BE42: =IF(AZ42=5,G42,0) -> 0 | CA42: 1 | CB42: 1
A43: 15 | B43: 979990002RRŠ | C43: Poplatek za skládku stavební suti štěrky z komunikací | D43: t | E43: 125.092 | G43: =E43*F43 -> 0 | H43: 0 | I43: =E43*H43 -> 0 | J43: 0 | K43: =E43*J43 -> 0 | O43: 2 | AA43: 1 | AB43: 1 | AC43: 1 | AZ43: 1 | BA43: =IF(AZ43=1,G43,0) -> 0 | BB43: =IF(AZ43=2,G43,0) -> 0 | BC43: =IF(AZ43=3,G43,0) -> 0 | BD43: =IF(AZ43=4,G43,0) -> 0 | BE43: =IF(AZ43=5,G43,0) -> 0 | CA43: 1 | CB43: 1
A44: 16 | B44: 979990011RRB | C44: Poplatek za skládku stavební suti beton z komunikací | D44: t | E44: 45.557 | G44: =E44*F44 -> 0 | H44: 0 | I44: =E44*H44 -> 0 | J44: 0 | K44: =E44*J44 -> 0 | O44: 2 | AA44: 1 | AB44: 1 | AC44: 1 | AZ44: 1 | BA44: =IF(AZ44=1,G44,0) -> 0 | BB44: =IF(AZ44=2,G44,0) -> 0 | BC44: =IF(AZ44=3,G44,0) -> 0 | BD44: =IF(AZ44=4,G44,0) -> 0 | BE44: =IF(AZ44=5,G44,0) -> 0 | CA44: 1 | CB44: 1
A45: 17 | B45: 979990112RRA | C45: Poplatek za skládku suti - obalované kam. - asfalt | D45: t | E45: 63.228 | G45: =E45*F45 -> 0 | H45: 0 | I45: =E45*H45 -> 0 | J45: 0 | K45: =E45*J45 -> 0 | O45: 2 | AA45: 1 | AB45: 1 | AC45: 1 | AZ45: 1 | BA45: =IF(AZ45=1,G45,0) -> 0 | BB45: =IF(AZ45=2,G45,0) -> 0 | BC45: =IF(AZ45=3,G45,0) -> 0 | BD45: =IF(AZ45=4,G45,0) -> 0 | BE45: =IF(AZ45=5,G45,0) -> 0 | CA45: 1 | CB45: 1
C46: Položka je určena pro suť o velikosti kusu do 30x30 cm (technologický materiál určený k recyklaci). | L46: Položka je určena pro suť o velikosti kusu do 30x30 cm (technologický materiál určený k recyklaci). | O46: 3
B47: Celkem za | C47: 1 Zemní práce | G47: =SUM(G7:G46) -> 0 | I47: =SUM(I7:I46) -> 0 | K47: =SUM(K7:K46) -> -233.877 | O47: 4 | BA47: =SUM(BA7:BA46) -> 0 | BB47: =SUM(BB7:BB46) -> 0 | BC47: =SUM(BC7:BC46) -> 0 | BD47: =SUM(BD7:BD46) -> 0 | BE47: =SUM(BE7:BE46) -> 0
A48: Díl: | B48: 5 | C48: Komunikace | O48: 1
A49: 18 | B49: 564831111RT2 | C49: Podklad ze štěrkodrti po zhutnění tloušťky 10 cm štěrkodrť frakce 0-32 mm | D49: m2 | E49: 424 | G49: =E49*F49 -> 0 | H49: 0.288 | I49: =E49*H49 -> 122.112 | J49: 0 | K49: =E49*J49 -> 0 | O49: 2 | AA49: 1 | AB49: 1 | AC49: 1 | AZ49: 1 | BA49: =IF(AZ49=1,G49,0) -> 0 | BB49: =IF(AZ49=2,G49,0) -> 0 | BC49: =IF(AZ49=3,G49,0) -> 0 | BD49: =IF(AZ49=4,G49,0) -> 0 | BE49: =IF(AZ49=5,G49,0) -> 0 | CA49: 1 | CB49: 1
C50: Chodník podél čp.2031 - asfaltový:40,00 | E50: 40 | M50: Chodník podél čp.2031 - asfaltový:40,00
C51: Přístupový chodník k čp.2031 - dlážděný:15,75 | E51: 15.75 | M51: Přístupový chodník k čp.2031 - dlážděný:15,75
C52: Přístupový chodník k čp.2030 - dlážděný:17,25 | E52: 17.25 | M52: Přístupový chodník k čp.2030 - dlážděný:17,25
C53: Chodník před čp.2030 a 2031 včetně bočního chodníku podél čp.2030 - dlážděný:307,00 | E53: 307 | M53: Chodník před čp.2030 a 2031 včetně bočního chodníku podél čp.2030 - dlážděný:307,00
C54: Procha pro kontejnery - dlážděná:44,00 | E54: 44 | M54: Procha pro kontejnery - dlážděná:44,00
A55: 19 | B55: 566903111R00 | C55: Vyspravení podkladu po překopech kam.hrubě drceným | D55: t | E55: 6.7428 | G55: =E55*F55 -> 0 | H55: 0 | I55: =E55*H55 -> 0 | J55: 0 | K55: =E55*J55 -> 0 | O55: 2 | AA55: 1 | AB55: 1 | AC55: 1 | AZ55: 1 | BA55: =IF(AZ55=1,G55,0) -> 0 | BB55: =IF(AZ55=2,G55,0) -> 0 | BC55: =IF(AZ55=3,G55,0) -> 0 | BD55: =IF(AZ55=4,G55,0) -> 0 | BE55: =IF(AZ55=5,G55,0) -> 0 | CA55: 1 | CB55: 1
C56: Podél části nových obrubníků:48,00*0,50*0,15*1,873 | E56: 6.7428 | M56: Podél části nových obrubníků:48,00*0,50*0,15*1,873
A57: 20 | B57: 566904111R00 | C57: Vyspravení podkladu po překopech kam.obal.asfaltem | D57: t | E57: 9 | G57: =E57*F57 -> 0 | H57: 0 | I57: =E57*H57 -> 0 | J57: 0 | K57: =E57*J57 -> 0 | O57: 2 | AA57: 1 | AB57: 1 | AC57: 1 | AZ57: 1 | BA57: =IF(AZ57=1,G57,0) -> 0 | BB57: =IF(AZ57=2,G57,0) -> 0 | BC57: =IF(AZ57=3,G57,0) -> 0 | BD57: =IF(AZ57=4,G57,0) -> 0 | BE57: =IF(AZ57=5,G57,0) -> 0 | CA57: 1 | CB57: 1
C58: Podél části nových obrubníků:48,00*0,50*0,15*2,5 | E58: 9 | M58: Podél části nových obrubníků:48,00*0,50*0,15*2,5
A59: 21 | B59: 573231111R00 | C59: Postřik živičný spojovací z emulze 0,5-0,7 kg/m2 | D59: m2 | E59: 40 | G59: =E59*F59 -> 0 | H59: 0 | I59: =E59*H59 -> 0 | J59: 0 | K59: =E59*J59 -> 0 | O59: 2 | AA59: 1 | AB59: 1 | AC59: 1 | AZ59: 1 | BA59: =IF(AZ59=1,G59,0) -> 0 | BB59: =IF(AZ59=2,G59,0) -> 0 | BC59: =IF(AZ59=3,G59,0) -> 0 | BD59: =IF(AZ59=4,G59,0) -> 0 | BE59: =IF(AZ59=5,G59,0) -> 0 | CA59: 1 | CB59: 1
C60: Chodník podél čp.2031 - asfaltový:40,00 | E60: 40 | M60: Chodník podél čp.2031 - asfaltový:40,00
A61: 22 | B61: 577141112RT3 | C61: Beton asfalt. ACO 11+,nebo ACO 16+,do 3 m, tl.5 cm plochy 101-200 m2 | D61: m2 | E61: 40 | G61: =E61*F61 -> 0 | H61: 0.12966 | I61: =E61*H61 -> 5.1864 | J61: 0 | K61: =E61*J61 -> 0 | O61: 2 | AA61: 1 | AB61: 1 | AC61: 1 | AZ61: 1 | BA61: =IF(AZ61=1,G61,0) -> 0 | BB61: =IF(AZ61=2,G61,0) -> 0 | BC61: =IF(AZ61=3,G61,0) -> 0 | BD61: =IF(AZ61=4,G61,0) -> 0 | BE61: =IF(AZ61=5,G61,0) -> 0 | CA61: 1 | CB61: 1
C62: Chodník podél čp.2031 - asfaltový:40,00 | E62: 40 | M62: Chodník podél čp.2031 - asfaltový:40,00
A63: 23 | B63: 596215021R00 | C63: Kladení zámkové dlažby tl. 6 cm do drtě tl. 4 cm | D63: m2 | E63: 384 | G63: =E63*F63 -> 0 | H63: 0.0739 | I63: =E63*H63 -> 28.3776 | J63: 0 | K63: =E63*J63 -> 0 | O63: 2 | AA63: 1 | AB63: 1 | AC63: 1 | AZ63: 1 | BA63: =IF(AZ63=1,G63,0) -> 0 | BB63: =IF(AZ63=2,G63,0) -> 0 | BC63: =IF(AZ63=3,G63,0) -> 0 | BD63: =IF(AZ63=4,G63,0) -> 0 | BE63: =IF(AZ63=5,G63,0) -> 0 | CA63: 1 | CB63: 1
C64: Přístupový chodník k čp.2031 - dlážděný:15,75 | E64: 15.75 | M64: Přístupový chodník k čp.2031 - dlážděný:15,75
C65: Přístupový chodník k čp.2030 - dlážděný:17,25 | E65: 17.25 | M65: Přístupový chodník k čp.2030 - dlážděný:17,25
C66: Chodník před čp.2030 a 2031 včetně bočního chodníku podél čp.2030 - dlážděný:307,00 | E66: 307 | M66: Chodník před čp.2030 a 2031 včetně bočního chodníku podél čp.2030 - dlážděný:307,00
C67: Procha pro kontejnery - dlážděná:44,00 | E67: 44 | M67: Procha pro kontejnery - dlážděná:44,00
A68: 24 | B68: 596291111R00 | C68: Řezání zámkové dlažby tl. 60 mm | D68: m | E68: 288 | G68: =E68*F68 -> 0 | H68: 0.00033 | I68: =E68*H68 -> 0.09504 | J68: 0 | K68: =E68*J68 -> 0 | O68: 2 | AA68: 1 | AB68: 1 | AC68: 1 | AZ68: 1 | BA68: =IF(AZ68=1,G68,0) -> 0 | BB68: =IF(AZ68=2,G68,0) -> 0 | BC68: =IF(AZ68=3,G68,0) -> 0 | BD68: =IF(AZ68=4,G68,0) -> 0 | BE68: =IF(AZ68=5,G68,0) -> 0 | CA68: 1 | CB68: 1
C69: Začátek provozního součtu | E69: 0 | M69: Začátek provozního součtu
C70: Přístupový chodník k čp.2031 - dlážděný:15,75 | E70: 15.75 | M70: Přístupový chodník k čp.2031 - dlážděný:15,75
C71: Přístupový chodník k čp.2030 - dlážděný:17,25 | E71: 17.25 | M71: Přístupový chodník k čp.2030 - dlážděný:17,25
C72: Chodník před čp.2030 a 2031 včetně bočního chodníku podél čp.2030 - dlážděný:307,00 | E72: 307 | M72: Chodník před čp.2030 a 2031 včetně bočního chodníku podél čp.2030 - dlážděný:307,00
C73: Procha pro kontejnery - dlážděná:44,00 | E73: 44 | M73: Procha pro kontejnery - dlážděná:44,00
C74: Konec provozního součtu | E74: 384 | M74: Konec provozního součtu
C75: 384,00*0,75 | E75: 288 | M75: 384,00*0,75
A76: 25 | B76: 59245287R | C76: Dlažba zámková přírodní tvar I 20x16,5x6 cm povrch standart | D76: m2 | E76: 353.325 | G76: =E76*F76 -> 0 | H76: 0.113 | I76: =E76*H76 -> 39.925725 | K76: =E76*J76 -> 0 | O76: 2 | AA76: 3 | AB76: 1 | AC76: 59245287R | AZ76: 1 | BA76: =IF(AZ76=1,G76,0) -> 0 | BB76: =IF(AZ76=2,G76,0) -> 0 | BC76: =IF(AZ76=3,G76,0) -> 0 | BD76: =IF(AZ76=4,G76,0) -> 0 | BE76: =IF(AZ76=5,G76,0) -> 0 | CA76: 3 | CB76: 1
C77: Přístupový chodník k čp.2031 - dlážděný:15,75*1,05 | E77: 16.5375 | M77: Přístupový chodník k čp.2031 - dlážděný:15,75*1,05
C78: Přístupový chodník k čp.2030 - dlážděný:17,25*1,05 | E78: 18.1125 | M78: Přístupový chodník k čp.2030 - dlážděný:17,25*1,05
C79: Chodník před čp.2030 a 2031 včetně bočního chodníku podél čp.2030 - dlážděný:307,00*1,05 | E79: 322.35 | M79: Chodník před čp.2030 a 2031 včetně bočního chodníku podél čp.2030 - dlážděný:307,00*1,05
C80: Procha pro kontejnery - dlážděná:44,00*1,05 | E80: 46.2 | M80: Procha pro kontejnery - dlážděná:44,00*1,05
C81: Odpočet dlažby pro nevidomé a slabozraké:-6,50*1,05 | E81: -6.825 | M81: Odpočet dlažby pro nevidomé a slabozraké:-6,50*1,05
C82: Odpočet dlažby u hlavního vstupu do objektu čp. 2030 a 2031:-41,00*1,05 | E82: -43.05 | M82: Odpočet dlažby u hlavního vstupu do objektu čp. 2030 a 2031:-41,00*1,05
A83: 26 | B83: 592453044R | C83: Dlažba zámková tvar I antarc. pro nevid.20x16,5x6 | D83: m2 | E83: 6.825 | G83: =E83*F83 -> 0 | H83: 0.136 | I83: =E83*H83 -> 0.9282 | K83: =E83*J83 -> 0 | O83: 2 | AA83: 3 | AB83: 1 | AC83: 592453044R | AZ83: 1 | BA83: =IF(AZ83=1,G83,0) -> 0 | BB83: =IF(AZ83=2,G83,0) -> 0 | BC83: =IF(AZ83=3,G83,0) -> 0 | BD83: =IF(AZ83=4,G83,0) -> 0 | BE83: =IF(AZ83=5,G83,0) -> 0 | CA83: 3 | CB83: 1
C84: dlažba s reliéfním povrchem pro nevidomé a slabozraké k vytvoření signálních a varovných pásů na chodnících, pro přechody a na nástupištích MHD | L84: dlažba s reliéfním povrchem pro nevidomé a slabozraké k vytvoření signálních a varovných pásů na chodnících, pro přechody a na nástupištích MHD | O84: 3
C85: vhodná pro ryze pochozí plochy | L85: vhodná pro ryze pochozí plochy | O85: 3
O86: 3
C87: Dlažba pro nevidomé a slabozraké:6,50*1,05 | E87: 6.825 | M87: Dlažba pro nevidomé a slabozraké:6,50*1,05
A88: 27 | B88: 59245315R | C88: Dlaždice betonová se zdrsněných povrchem | D88: m2 | E88: 43.05 | G88: =E88*F88 -> 0 | H88: 0.12 | I88: =E88*H88 -> 5.166 | K88: =E88*J88 -> 0 | O88: 2 | AA88: 3 | AB88: 1 | AC88: 59245315R | AZ88: 1 | BA88: =IF(AZ88=1,G88,0) -> 0 | BB88: =IF(AZ88=2,G88,0) -> 0 | BC88: =IF(AZ88=3,G88,0) -> 0 | BD88: =IF(AZ88=4,G88,0) -> 0 | BE88: =IF(AZ88=5,G88,0) -> 0 | CA88: 3 | CB88: 1
C89: Dlažba u hlavního vstupu do objektu čp. 2030 a 2031:41,00*1,05 | E89: 43.05 | M89: Dlažba u hlavního vstupu do objektu čp. 2030 a 2031:41,00*1,05
B90: Celkem za | C90: 5 Komunikace | G90: =SUM(G48:G89) -> 0 | I90: =SUM(I48:I89) -> 201.790965 | K90: =SUM(K48:K89) -> 0 | O90: 4 | BA90: =SUM(BA48:BA89) -> 0 | BB90: =SUM(BB48:BB89) -> 0 | BC90: =SUM(BC48:BC89) -> 0 | BD90: =SUM(BD48:BD89) -> 0 | BE90: =SUM(BE48:BE89) -> 0
A91: Díl: | B91: 8 | C91: Trubní vedení | O91: 1
A92: 28 | B92: 899231111R00 | C92: Výšková úprava vstupu do 20 cm, zvýšení mříže | D92: kus | E92: 1 | G92: =E92*F92 -> 0 | H92: 0.43382 | I92: =E92*H92 -> 0.43382 | J92: 0 | K92: =E92*J92 -> 0 | O92: 2 | AA92: 1 | AB92: 1 | AC92: 1 | AZ92: 1 | BA92: =IF(AZ92=1,G92,0) -> 0 | BB92: =IF(AZ92=2,G92,0) -> 0 | BC92: =IF(AZ92=3,G92,0) -> 0 | BD92: =IF(AZ92=4,G92,0) -> 0 | BE92: =IF(AZ92=5,G92,0) -> 0 | CA92: 1 | CB92: 1
A93: 29 | B93: 899331111R00 | C93: Výšková úprava vstupu do 20 cm, zvýšení poklopu | D93: kus | E93: 1 | G93: =E93*F93 -> 0 | H93: 0.43094 | I93: =E93*H93 -> 0.43094 | J93: 0 | K93: =E93*J93 -> 0 | O93: 2 | AA93: 1 | AB93: 1 | AC93: 1 | AZ93: 1 | BA93: =IF(AZ93=1,G93,0) -> 0 | BB93: =IF(AZ93=2,G93,0) -> 0 | BC93: =IF(AZ93=3,G93,0) -> 0 | BD93: =IF(AZ93=4,G93,0) -> 0 | BE93: =IF(AZ93=5,G93,0) -> 0 | CA93: 1 | CB93: 1
A94: 30 | B94: 899431111R00 | C94: Výšková úprava do 20 cm, zvýšení krytu šoupěte | D94: kus | E94: 5 | G94: =E94*F94 -> 0 | H94: 0.3159 | I94: =E94*H94 -> 1.5795 | J94: 0 | K94: =E94*J94 -> 0 | O94: 2 | AA94: 1 | AB94: 1 | AC94: 1 | AZ94: 1 | BA94: =IF(AZ94=1,G94,0) -> 0 | BB94: =IF(AZ94=2,G94,0) -> 0 | BC94: =IF(AZ94=3,G94,0) -> 0 | BD94: =IF(AZ94=4,G94,0) -> 0 | BE94: =IF(AZ94=5,G94,0) -> 0 | CA94: 1 | CB94: 1
B95: Celkem za | C95: 8 Trubní vedení | G95: =SUM(G91:G94) -> 0 | I95: =SUM(I91:I94) -> 2.44426 | K95: =SUM(K91:K94) -> 0 | O95: 4 | BA95: =SUM(BA91:BA94) -> 0 | BB95: =SUM(BB91:BB94) -> 0 | BC95: =SUM(BC91:BC94) -> 0 | BD95: =SUM(BD91:BD94) -> 0 | BE95: =SUM(BE91:BE94) -> 0
A96: Díl: | B96: 91 | C96: Doplňující práce na komunikaci | O96: 1
A97: 31 | B97: 911131111RRX | C97: Osazení a montáž silnič.zábradlí ocelového,1 madlo včetně dodávky zábradlí dle požadavku investora | D97: m | E97: 8 | G97: =E97*F97 -> 0 | H97: 0.125 | I97: =E97*H97 -> 1 | J97: 0 | K97: =E97*J97 -> 0 | O97: 2 | AA97: 1 | AB97: 1 | AC97: 1 | AZ97: 1 | BA97: =IF(AZ97=1,G97,0) -> 0 | BB97: =IF(AZ97=2,G97,0) -> 0 | BC97: =IF(AZ97=3,G97,0) -> 0 | BD97: =IF(AZ97=4,G97,0) -> 0 | BE97: =IF(AZ97=5,G97,0) -> 0 | CA97: 1 | CB97: 1
C98: Součástí položky jsou i základy pro zábradlí | L98: Součástí položky jsou i základy pro zábradlí | O98: 3
C99: U hlavního vstupu do objektu čp. 2030 a 2031:4,00*2 | E99: 8 | M99: U hlavního vstupu do objektu čp. 2030 a 2031:4,00*2
A100: 32 | B100: 916531111RT4 | C100: Osazení záhon.obrubníků do lože z C12/15 bez opěry včetně obrubníku ABO 4 - 5 50/5/25 | D100: m | E100: 115 | G100: =E100*F100 -> 0 | H100: 0.1242 | I100: =E100*H100 -> 14.283 | J100: 0 | K100: =E100*J100 -> 0 | O100: 2 | AA100: 1 | AB100: 1 | AC100: 1 | AZ100: 1 | BA100: =IF(AZ100=1,G100,0) -> 0 | BB100: =IF(AZ100=2,G100,0) -> 0 | BC100: =IF(AZ100=3,G100,0) -> 0 | BD100: =IF(AZ100=4,G100,0) -> 0 | BE100: =IF(AZ100=5,G100,0) -> 0 | CA100: 1 | CB100: 1
C101: Nové záhonové obruby:115,00 | E101: 115 | M101: Nové záhonové obruby:115,00
A102: 33 | B102: 917862111RT7 | C102: Osazení stojat. obrub.bet. s opěrou,lože z C 12/15 včetně obrubníku ABO 2 - 15 100/15/25 | D102: m | E102: 93 | G102: =E102*F102 -> 0 | H102: 0.26981 | I102: =E102*H102 -> 25.09233 | J102: 0 | K102: =E102*J102 -> 0 | O102: 2 | AA102: 1 | AB102: 1 | AC102: 1 | AZ102: 1 | BA102: =IF(AZ102=1,G102,0) -> 0 | BB102: =IF(AZ102=2,G102,0) -> 0 | BC102: =IF(AZ102=3,G102,0) -> 0 | BD102: =IF(AZ102=4,G102,0) -> 0 | BE102: =IF(AZ102=5,G102,0) -> 0 | CA102: 1 | CB102: 1
C103: U přechodů pro chodce a v prostoru zakončení chodníků u vjezdů na parkovací plochy budou obrubníky sníženy s odsazením nad asfaltovou vrstvou komunikace na 2 cm | L103: U přechodů pro chodce a v prostoru zakončení chodníků u vjezdů na parkovací plochy budou obrubníky sníženy s odsazením nad asfaltovou vrstvou komunikace na 2 cm | O103: 3
C104: Nové silniční obruby:93,00 | E104: 93 | M104: Nové silniční obruby:93,00
A105: 34 | B105: 918101111R00 | C105: Lože pod obrubníky nebo obruby dlažeb z C 12/15 | D105: m3 | E105: 5.665 | G105: =E105*F105 -> 0 | H105: 2.525 | I105: =E105*H105 -> 14.304125 | J105: 0 | K105: =E105*J105 -> 0 | O105: 2 | AA105: 1 | AB105: 1 | AC105: 1 | AZ105: 1 | BA105: =IF(AZ105=1,G105,0) -> 0 | BB105: =IF(AZ105=2,G105,0) -> 0 | BC105: =IF(AZ105=3,G105,0) -> 0 | BD105: =IF(AZ105=4,G105,0) -> 0 | BE105: =IF(AZ105=5,G105,0) -> 0 | CA105: 1 | CB105: 1
C106: Nové záhonové obruby:115,00*0,25*0,10 | E106: 2.875 | M106: Nové záhonové obruby:115,00*0,25*0,10
C107: Nové silniční obruby:93,00*0,30*0,10 | E107: 2.79 | M107: Nové silniční obruby:93,00*0,30*0,10
A108: 35 | B108: 919735111R00 | C108: Řezání stávajícího živičného krytu tl. do 5 cm | D108: m | E108: 50 | G108: =E108*F108 -> 0 | H108: 0 | I108: =E108*H108 -> 0 | J108: 0 | K108: =E108*J108 -> 0 | O108: 2 | AA108: 1 | AB108: 1 | AC108: 1 | AZ108: 1 | BA108: =IF(AZ108=1,G108,0) -> 0 | BB108: =IF(AZ108=2,G108,0) -> 0 | BC108: =IF(AZ108=3,G108,0) -> 0 | BD108: =IF(AZ108=4,G108,0) -> 0 | BE108: =IF(AZ108=5,G108,0) -> 0 | CA108: 1 | CB108: 1
C109: Podél nových obrubníků v prostoru asf. komunikace:50,00 | E109: 50 | M109: Podél nových obrubníků v prostoru asf. komunikace:50,00
A110: 36 | B110: 919735113R00 | C110: Řezání stávajícího živičného krytu tl. 10 - 15 cm | D110: m | E110: 50 | G110: =E110*F110 -> 0 | H110: 0 | I110: =E110*H110 -> 0 | J110: 0 | K110: =E110*J110 -> 0 | O110: 2 | AA110: 1 | AB110: 1 | AC110: 1 | AZ110: 1 | BA110: =IF(AZ110=1,G110,0) -> 0 | BB110: =IF(AZ110=2,G110,0) -> 0 | BC110: =IF(AZ110=3,G110,0) -> 0 | BD110: =IF(AZ110=4,G110,0) -> 0 | BE110: =IF(AZ110=5,G110,0) -> 0 | CA110: 1 | CB110: 1
C111: Podél části sávajících obrubníků:50,00 | E111: 50 | M111: Podél části sávajících obrubníků:50,00
A112: 37 | B112: 931627111R00 | C112: Úprava dilatační spáry asfaltovou izolač. zálivkou | D112: kg | E112: 50 | G112: =E112*F112 -> 0 | H112: 0.001 | I112: =E112*H112 -> 0.05 | J112: 0 | K112: =E112*J112 -> 0 | O112: 2 | AA112: 1 | AB112: 0 | AC112: 0 | AZ112: 1 | BA112: =IF(AZ112=1,G112,0) -> 0 | BB112: =IF(AZ112=2,G112,0) -> 0 | BC112: =IF(AZ112=3,G112,0) -> 0 | BD112: =IF(AZ112=4,G112,0) -> 0 | BE112: =IF(AZ112=5,G112,0) -> 0 | CA112: 1 | CB112: 0
C113: Včetně očistění ploch spár před úpravou a očistění okolí spáry po úpravě. | L113: Včetně očistění ploch spár před úpravou a očistění okolí spáry po úpravě. | O113: 3
C114: Podél nových obrubníků v prostoru asf. komunikace:50,00 | E114: 50 | M114: Podél nových obrubníků v prostoru asf. komunikace:50,00
B115: Celkem za | C115: 91 Doplňující práce na komunikaci | G115: =SUM(G96:G114) -> 0 | I115: =SUM(I96:I114) -> 54.729455 | K115: =SUM(K96:K114) -> 0 | O115: 4 | BA115: =SUM(BA96:BA114) -> 0 | BB115: =SUM(BB96:BB114) -> 0 | BC115: =SUM(BC96:BC114) -> 0 | BD115: =SUM(BD96:BD114) -> 0 | BE115: =SUM(BE96:BE114) -> 0
A116: Díl: | B116: 99 | C116: Staveništní přesun hmot | O116: 1
A117: 38 | B117: 998223011R00 | C117: Přesun hmot, pozemní komunikace, kryt dlážděný | D117: t | E117: 258.96468 | G117: =E117*F117 -> 0 | H117: 0 | I117: =E117*H117 -> 0 | K117: =E117*J117 -> 0 | O117: 2 | AA117: 7 | AB117: 1 | AC117: 2 | AZ117: 1 | BA117: =IF(AZ117=1,G117,0) -> 0 | BB117: =IF(AZ117=2,G117,0) -> 0 | BC117: =IF(AZ117=3,G117,0) -> 0 | BD117: =IF(AZ117=4,G117,0) -> 0 | BE117: =IF(AZ117=5,G117,0) -> 0 | CA117: 7 | CB117: 1
B118: Celkem za | C118: 99 Staveništní přesun hmot | G118: =SUM(G116:G117) -> 0 | I118: =SUM(I116:I117) -> 0 | K118: =SUM(K116:K117) -> 0 | O118: 4 | BA118: =SUM(BA116:BA117) -> 0 | BB118: =SUM(BB116:BB117) -> 0 | BC118: =SUM(BC116:BC117) -> 0 | BD118: =SUM(BD116:BD117) -> 0 | BE118: =SUM(BE116:BE117) -> 0
